Cogmind - Beta 17.1 @@@ ROGUE MODE // 2026.09.05 @ 14:50:13 Player: naththebg Result: Destroyed by Executioner with Helical Railgun Performance ------------- Evolutions (9) 4500 Regions Visited (37) 7400 Robots Destroyed (1847) 9235 Value Destroyed (111897) 111897 Prototype IDs (178) 3560 Alien Tech Used (10) 2000 Bonus (154004) 154004 TOTAL SCORE: 292596 Bonus ------- Triggered High Security 2500 High Alert Combat Kills 72269 Follower Combat Kills 2666 Prayed to X0-1V1 5000 Major X0-1V1 Interference 43650 Subatomizer Sterilization 3000 Entered Garrisons 800 Used RIF Installer 1500 Network Hubs Disabled 200 Met R17 at Cetus 500 Found Hidden Lab 3000 Met R17 at Research 2000 Scanned by Researcher 500 Pursued by Intercept 3000 Destroyed Superfortress 15000 Friendly Fire -1581 Cogmind --------- Core Integrity 0/1340 Matter 751/1050 Energy 929/940 System Corruption 15% Temperature Cool (0) Movement Immobile (Siege) Ox1 Location -1/Access Parts ------- > --- POWER (2) -------- Light Quantum Reactor Improved Quantum Reactor (fused) > --- PROPULSION (5) --- Advanced Heavy Siege Treads Enhanced Biometal Leg Experimental VSS Leg (fused) > --- UTILITY (13) ----- Armored Scrap Engine Concept Phasing Heat Sink (fused) Concept Thermoelectric Network Concept Antigrav Storage Unit Concept NT7 Matterbank Experimental Optical Array Experimental Core Analyzer Concept Core Analysis Suite Experimental Armor Integrity Analyzer Concept Cloak Mesh (fused) Concept Beam Splitter > --- WEAPON (6) ------- Prc. Thermal Plasma Construct/C Heavy Scimitar of Distortion (fused) > --- INVENTORY (25) --- Particle Reactor Concept Zero-point Core Myomer Leg Centrium Leg Concept Thermoelectric Network Concept Chromion Battery (800) Concept Networked Targeting System Phase Armor Concept Matter Streamer Crosscalibrator Concept Impact Drone Bay (6/6) Concept Impact Drone Bay (6/6) Core Cannon Concept XC Strikerail Concept Tiamat Rocket Array Peak State ------------ > --- POWER ------------ Multi-Particle Reactor > --- PROPULSION ------- VSS-Centrium Exoskeleton > --- UTILITY ---------- Armored Scrap Engine Concept Phasing Heat Sink Concept Thermoelectric Network Concept Antigrav Storage Unit Concept Core Analysis Suite Experimental Kinecellerator Advanced Weapon Cycler Concept Reaction Jets Concept Cloak Mesh Experimental Force Field > --- WEAPON ----------- Concept Plasma Driver Concept Plasma Driver Prc. Thermal Plasma Construct/C > --- INVENTORY -------- Experimental Antimatter Reactor Concept Zero-point Core Experimental Thermal Generator Experimental Coolant Injector Concept Thermoelectric Network Concept Chromion Battery Concept NT7 Matterbank Concept Networked Targeting System Experimental Kinecellerator Concept Cloak Mesh Centrium Medium Armor Plating Phase Armor Concept Beam Splitter Concept Matter Streamer Crosscalibrator Concept Impact Drone Bay Concept Impact Drone Bay Transdimensional Reconstructor Core Cannon Concept XC Strikerail Concept XC Strikerail Concept Tiamat Rocket Array Concept Tiamat Rocket Array [Rating: 278] Favorites ----------- Power Constructs Engine Ion Engine Power Core Light Nuclear Core Reactor Constructs Propulsion Constructs Treads Armored Treads Leg Constructs Wheel Subdweller Monowheel Flight Unit Diametric Drive Utility Armored Scrap Engine Device Armored Scrap Engine Storage Huge Storage Unit Processor Experimental Optical Array Hackware Experimental Hacking Suite Protection Experimental Powered Armor Artifact Phase Armor Weapon Constructs Energy Gun Gatling Laser Energy Cannon Constructs Ballistic Gun Concept XC Strikerail Ballistic Cannon Enhanced Hardcell Cannon Launcher Fusion Bomb Launcher Special Weapon Advanced Remote Datajack Impact Weapon Core Stripper Slashing Weapon Sigix Broadsword Build | -11 -10 -10 -8 -8 -8 -8 -8 -6 -6 -6 -6 -6 -6 -6 -5 -5 -5 -5 -5 -5 -5 -5 -5 -4 -4 -4 -4 -4 -3 -3 -3 -3 -2 -2 -2 -2 -1 ------- Run | Yrd Mat Sub Mat Gar Mat Sto Rec Fac Was Fac Low Low Zio Dee Pro Fac Was Fac Ext Cet Arc Hub Gar Fac Was Fac Arm Lab Res Gar Res Tes Res Gar Qua Frg Acc Slots Evolved 16 | . . . 4 . . . . 4 . . . . . . . 2 . . . . . . . 2 . . . . 2 . . . . . . . 2 Power 1 | . . . . . . . . . . . . . . . . 1 . . . . . . . . . . . . . . . . . . . . . Propulsion 3 | . . . 1 . . . . 1 . . . . . . . . . . . . . . . 1 . . . . . . . . . . . . . Utility 11 | . . . 2 . . . . 3 . . . . . . . 1 . . . . . . . 1 . . . . 2 . . . . . . . 2 Weapon 1 | . . . 1 . . . . . . . . . . . . . . . . . . . . . . . . . . . . . . . . . . Parts Attached 425 | 6 10 16 26 6 36 4 6 16 . 8 3 10 4 6 3 25 1 13 1 5 3 . 4 4 2 10 20 9 18 1 16 15 9 5 40 51 13 Power 40 | 1 . 1 2 2 7 1 . . . 1 . . . 1 . 3 . 1 . . . . . . . . 2 1 1 . 4 5 2 . 1 2 2 Engine 12 | 1 . 1 2 1 4 1 . . . . . . . . . 2 . . . . . . . . . . . . . . . . . . . . . Core 8 | . . . . 1 3 . . . . 1 . . . . . . . 1 . . . . . . . . 1 . . . . . . . . 1 . Reactor 20 | . . . . . . . . . . . . . . 1 . 1 . . . . . . . . . . 1 1 1 . 4 5 2 . 1 1 2 Propulsion 49 | 2 . 4 9 2 13 1 1 . . . . . . . . . . . . . . . . . . . . . 3 . 1 1 . . . 6 6 Treads 18 | 2 . 2 1 . 6 1 1 . . . . . . . . . . . . . . . . . . . . . 2 . 1 1 . . . . 1 Leg 28 | . . . 7 2 7 . . . . . . . . . . . . . . . . . . . . . . . 1 . . . . . . 6 5 Wheel 3 | . . 2 1 . . . . . . . . . . . . . . . . . . . . . . . . . . . . . . . . . . Hover . | . . . . . . . . . . . . . . . . . . . . . . . . . . . . . . . . . . . . . . Flight . | . . . . . . . . . . . . . . . . . . . . . . . . . . . . . . . . . . . . . . Utility 254 | 1 3 4 7 . 7 2 2 15 . 6 1 5 2 4 2 21 1 7 1 2 2 . 4 4 2 10 18 8 14 1 11 8 6 3 32 34 4 Device 167 | . 3 2 1 . 6 2 2 12 . 3 1 3 2 1 2 14 . 3 1 2 1 . 2 2 2 9 17 7 7 1 3 5 3 1 22 24 1 Storage 16 | 1 . . 4 . . . . 1 . . . . . 1 . 1 . 2 . . . . . 1 . . . . 1 . . 1 . . 1 1 1 Processor 28 | . . . 1 . . . . 1 . . . 1 . . . 3 1 1 . . . . . . . . 1 . 5 . 3 1 1 . 2 6 1 Hackware 9 | . . . 1 . . . . . . 1 . . . . . . . . . . . . . . . 1 . . . . 1 . 1 . 3 . 1 Protection 33 | . . 2 . . 1 . . 1 . 2 . 1 . 2 . 3 . 1 . . 1 . 2 1 . . . 1 1 . 4 1 1 2 3 3 . Artifact 1 | . . . . . . . . . . . . . . . . . . . . . . . . . . . . . . . . . . . 1 . . Weapon 82 | 2 7 7 8 2 9 . 3 1 . 1 2 5 2 1 1 1 . 5 . 3 1 . . . . . . . . . . 1 1 2 7 9 1 Energy Gun 28 | 1 4 . 7 1 4 . 2 . . . . 2 1 . 1 1 . 1 . . . . . . . . . . . . . . . . . 3 . Energy Cannon 20 | . 2 6 1 . 4 . . . . . . . . . . . . 1 . 3 . . . . . . . . . . . . . . 1 2 . Ballistic Gun 8 | 1 . . . . . . . . . . 1 1 . . . . . 2 . . 1 . . . . . . . . . . . . . . 1 1 Ballistic Cannon 12 | . . 1 . . . . . . . 1 . 2 1 . . . . 1 . . . . . . . . . . . . . . . 2 4 . . Launcher 8 | . 1 . . 1 1 . 1 . . . . . . 1 . . . . . . . . . . . . . . . . . 1 . . . 2 . Special Weapon 2 | . . . . . . . . . . . 1 . . . . . . . . . . . . . . . . . . . . . 1 . . . . Impact Weapon 2 | . . . . . . . . . . . . . . . . . . . . . . . . . . . . . . . . . . . 1 1 . Slashing Weapon 2 | . . . . . . . . 1 . . . . . . . . . . . . . . . . . . . . . . . . . . 1 . . Piercing Weapon . | . . . . . . . . . . . . . . . . . . . . . . . . . . . . . . . . . . . . . . Special Melee Weapon . | . . . . . . . . . . . . . . . . . . . . . . . . . . . . . . . . . . . . . . Unidentified Prototypes 54 | . 1 . 2 . . 1 1 1 . 1 . 1 . 3 . 8 . 1 . . 1 . . . . . . 6 2 . 1 1 . . 11 11 1 Corrupted Parts 8 | . . 1 . . 3 . . . . . . . . . . 1 . . . . . . . . . . 2 . . . . . . . . . 1 System Corruption 64 | . . 3 . . 24 . . . . . . . . . . 2 . . . . . . . . . . 25 . . . . . . . . . 10 Parts Lost 106 | . . 7 2 9 13 1 1 . . 2 . . 1 2 . 3 . . 4 . . . 1 . . . 12 . . 1 1 11 1 2 6 22 4 Power 15 | . . 1 . 2 3 . . . . . . . . . . . . . . . . . . . . . 3 . . . 1 2 . . 1 2 . Propulsion 27 | . . 3 . 3 4 1 1 . . . . . . . . . . . 1 . . . . . . . 3 . . . . 2 . . . 7 2 Utility 42 | . . 2 . . 1 . . . . 2 . . 1 1 . 3 . . 1 . . . 1 . . . 6 . . 1 . 6 1 2 2 11 1 Weapon 22 | . . 1 2 4 5 . . . . . . . . 1 . . . . 2 . . . . . . . . . . . . 1 . . 3 2 1 Highest Loss Streak 8 | . . 3 1 4 5 1 1 . . 2 . . 1 1 . 2 . . 4 . . . 1 . . . 3 . . 1 1 4 1 1 2 8 3 To Critical Strikes 6 | . . . . . . . 1 . . . . . . . . . . . 1 . . . . . . . 1 . . . . . . . 1 2 . Average Backups 19 | 4 7 7 10 12 16 18 16 17 19 18 17 16 17 14 15 17 16 18 23 21 22 18 18 18 22 24 22 19 23 24 23 20 20 22 22 22 16 Power . | . 1 1 1 . . . . . 1 . . . . . . . . . . . . . . . . . . . . . . . 1 2 1 1 1 Propulsion . | 2 2 1 2 1 3 4 2 . . . . . . . . 1 1 . . . . . . . . . . . . . . 1 1 . . . 1 Utility 13 | . 1 1 . 2 5 7 7 9 12 12 12 12 12 13 13 12 14 15 18 17 17 17 17 16 18 18 17 18 20 21 19 15 16 17 16 14 10 Weapon 3 | 1 2 3 5 8 7 7 5 6 5 5 4 4 4 1 2 2 1 2 5 4 4 1 1 2 3 6 5 1 2 2 2 1 . 1 2 4 3 Tool/Special . | . . . . . . . . . . . . . . . . . . . . . . . . . . . . . . . . . . . . . . Unused Backups 196 | . 11 1 4 4 4 . 10 16 1 6 1 3 3 . 2 13 . 8 2 3 4 . 2 4 . 10 17 4 10 1 7 2 2 . 21 12 8 Power 11 | . . . 2 . . . . 1 . 1 1 . . . . . . 1 . . . . . . . 1 . . . . . . . . 2 1 1 Propulsion 32 | . 4 . 1 . 2 . 4 3 . . . 3 . . . 3 . 1 . . . . 1 . . . 2 . . . 3 . 1 . 3 . 1 Utility 42 | . 2 1 1 . 1 . . 2 . 2 . . . . . 5 . 1 . . . . 1 1 . 3 2 . 6 . 1 . . . 3 5 5 Weapon 108 | . 5 . . 4 1 . 6 9 1 3 . . 3 . 2 5 . 5 2 3 4 . . 3 . 5 13 4 4 1 3 2 1 . 12 6 1 Tool/Special 3 | . . . . . . . . 1 . . . . . . . . . . . . . . . . . 1 . . . . . . . . 1 . . Average Slot Usage (%) 67 | . 98 97 97 98 98 100 81 59 56 52 53 54 57 59 55 56 55 57 59 56 57 55 56 54 55 54 53 56 65 67 67 63 57 63 56 57 64 Engine 2 | . 14 13 9 5 5 9 8 1 . 4 5 . . . . . . . . . . . . . . . . . . . . . . . . . . Core 1 | . . . . 3 2 . . . . . . 5 4 . . . . 1 . . . . . 5 5 5 2 5 2 . . . . . . 2 . Reactor 3 | . . . . . . . . 3 6 . . . 1 6 6 6 10 5 5 5 4 5 4 . . . 2 5 6 9 8 8 7 6 4 1 4 Treads 5 | . 28 24 . . 17 27 18 . . 4 . . . . . . . . . . . . . 2 . . 2 5 6 9 8 7 1 . 1 . . Leg 3 | . . . 25 26 9 . . . . . . . . . . . 5 . . . 2 . . 2 5 5 2 . . . . . 1 3 2 6 12 Device 20 | . 12 3 11 9 13 18 17 29 26 21 25 23 25 18 22 24 20 19 16 19 15 20 16 20 25 24 24 26 30 26 22 21 15 12 18 28 18 Storage 6 | . 14 14 9 9 9 9 9 6 6 6 6 6 6 10 12 6 5 5 5 5 5 5 5 5 5 5 5 5 4 4 4 4 3 4 4 4 4 Processor 5 | . . . 5 9 3 . . . . . . . . . . 4 9 11 11 11 11 11 11 10 10 10 8 5 4 9 12 10 7 8 6 5 11 Hackware 1 | . . . 8 9 6 . . . . . . . . . . . . . . . . . . . . . . . . . . . 3 4 6 . 1 Protection 3 | . . 10 . . 2 9 4 2 . 3 . 4 5 6 1 . . 2 4 1 5 1 4 3 . . . . 3 4 4 3 4 7 2 2 . Energy Gun 3 | . 7 . 16 26 13 27 16 . . . . . . . . . . . . . . . . . . . . . . . . . . . . . . Energy Cannon 4 | . 17 27 6 . 12 . . 5 6 5 5 . 1 6 6 3 5 1 4 5 4 . . . 3 4 1 . 3 4 4 3 3 3 . 1 2 Ballistic Cannon 1 | . . . 2 . . . . . . . . 6 4 . . 1 . 3 4 1 2 5 6 5 1 . 3 5 . . . . . 3 4 3 . Peak Build Rating 278 | 6 22 13 43 37 46 50 55 110 101 102 103 106 106 104 114 124 116 127 130 119 137 127 132 147 149 156 163 172 201 201 204 199 213 212 238 278 271 Average Rating 138 | 3 10 11 33 34 34 40 43 92 97 91 97 98 100 101 104 110 115 118 123 110 125 122 122 134 147 150 147 155 190 199 196 191 198 208 209 236 244 On Entrance 113 | . 6 11 12 32 35 41 40 52 96 97 84 102 101 95 99 109 116 116 125 92 119 127 122 125 147 149 149 139 166 201 199 194 189 207 203 224 187 Avg Prop Armor Cover (%) 4 | . . 9 7 . . . . . . . . . . . . . . . . . . . . . . . . . . . . . . . . . 2 Naked Turns . | . . . . . . . . . . . . . . . . . . . . . . . . . . . . . . . . . . . . . . Heaviest Build 191 | 13 20 33 60 40 79 77 72 95 91 97 83 94 94 97 72 111 96 138 149 144 148 148 155 166 166 189 168 150 165 172 172 178 174 191 189 184 132 Greatest Support 281 | 40 40 40 51 51 60 62 64 133 125 193 193 193 132 102 102 126 126 175 175 131 174 171 171 206 206 258 258 144 214 214 216 219 108 175 281 213 138 Greatest Overweight (x) 2 | . . 1 1 1 2 1 1 2 . . . . . . . 1 . . . 1 1 . . . . . 1 1 1 . . 2 2 1 1 1 2 Average Overweight (x) . | . . . . . . 1 . . . . . . . . . . . . . . . . . . . . . . . . . . 1 1 . . . Largest Inventory Capacity 25 | 8 8 8 20 15 20 20 20 20 20 20 20 20 20 20 20 20 20 25 25 25 25 25 25 25 25 25 25 25 25 25 25 25 25 25 25 25 25 Average Capacity 21 | 6 8 8 13 15 18 20 20 20 20 20 20 20 20 20 20 20 20 20 25 25 25 25 23 20 25 25 25 25 25 25 25 25 25 25 25 25 25 Most Carried 25 | 7 8 8 17 15 20 20 20 20 20 20 20 20 20 17 19 20 18 25 25 25 25 20 22 20 24 25 25 25 25 25 25 25 25 25 25 25 23 Average Carried 20 | 4 7 7 11 13 17 19 17 18 20 19 19 18 19 15 17 18 17 19 24 22 23 19 19 18 22 24 22 20 23 24 23 23 22 23 24 24 18 Final Capacity 25 | 8 8 8 15 15 20 20 20 20 20 20 20 20 20 20 20 20 20 25 25 25 25 25 20 25 25 25 25 25 25 25 25 25 25 25 25 25 25 Final Carried 25 | 6 8 8 15 15 20 19 19 20 20 19 19 19 20 16 19 18 18 25 24 25 20 19 20 20 24 25 22 25 25 24 25 25 25 25 25 25 19 Scrap Engine Consumption 291 | . . . . . . . 48 5 . 7 4 1 4 . 3 22 2 12 3 18 12 . 2 2 4 2 24 4 9 . . . 9 6 54 28 6 Constructs Created 48 | . . . . . . . 3 . . 2 4 . . . . 1 . 1 . . 3 . 2 . . . 2 . . . . 4 . 2 15 4 5 Constructs Modified 401 | . . . . . . . 17 31 . 16 6 6 18 . . 11 . 19 2 6 23 . 12 7 1 4 38 2 4 . . 9 6 30 84 38 11 Class Distribution -------------------- 38% | Construct 8% | Gunner 7% | Scavenger-Tank 7% | Mutant 7% | Tank 6% | Scavenger-Skirmisher 4% | Commander-Construct 4% | Scavenger-Construct Dominant Class ---------------- Mutant | -10/Materials Mutant | -10/Subcaves Gunner | -8/Materials Gunner | -8/Garrison Scavenger-Gunner | -8/Materials Scavenger-Tank | -8/Storage Tank | -8/Recycling Commander-Construct | -6/Factory Construct | -6/Waste Construct | -6/Factory Construct | -6/Lower Caves Construct | -6/Lower Caves Construct | -6/Zion Construct | -6/Deep Caves Construct | -5/Proximity Caves Construct | -5/Factory Construct | -5/Waste Construct | -5/Factory Commander-Construct | -5/Extension Construct | -5/Cetus Construct | -5/Archives Construct | -5/Hub_04(d) Construct | -5/Garrison Construct | -4/Factory Construct | -4/Waste Construct | -4/Factory Construct | -4/Armory Construct | -4/Lab Tank | -3/Research Scavenger-Tank | -3/Garrison Scavenger-Skirmisher | -3/Research Scavenger-Tank | -3/Testing Scavenger-Executioner | -2/Research Scavenger-Executioner | -2/Garrison Hacker-Mutant | -2/Quarantine Construct | -2/Protoforge Gunner | -1/Access Resources | -11 -10 -10 -8 -8 -8 -8 -8 -6 -6 -6 -6 -6 -6 -6 -5 -5 -5 -5 -5 -5 -5 -5 -5 -4 -4 -4 -4 -4 -3 -3 -3 -3 -2 -2 -2 -2 -1 ----------- Run | Yrd Mat Sub Mat Gar Mat Sto Rec Fac Was Fac Low Low Zio Dee Pro Fac Was Fac Ext Cet Arc Hub Gar Fac Was Fac Arm Lab Res Gar Res Tes Res Gar Qua Frg Acc Matter Collected 34884 | 207 153 675 792 283 931 203 613 558 . 604 70 184 60 290 382 2310 118 707 495 166 56 87 1627 185 249 1202 1920 390 1667 699 1231 1274 118 200 3789 8006 2383 Remotely 303 | . . . . . . . . . . . . . . . . . . . . . . . . . . 10 . . . . 208 . . . 85 . . Salvage Created 116557 | . 229 965 1400 1311 2310 335 574 1736 . 2160 432 1229 1405 546 523 3016 969 1443 2719 683 397 282 1643 1277 1715 4801 6909 90 6374 3937 15096 8277 1732 2375 2230 25839 9598 Parts 4007 | . 16 66 58 59 120 14 31 65 . 87 21 45 105 5 8 95 20 77 86 25 17 10 91 56 25 183 174 13 282 185 410 293 67 105 87 676 330 Haulers Intercepted 31 | . 1 . 5 . 6 . . 6 . 2 . . . . . 1 . 3 . . . . . . . 4 . . 1 . 1 . . . 1 . . Recyclers Shooed 9 | . . . 3 . . . . 1 . . . . . . . 3 . . . . . 1 . . . . . . . . . . . . 1 . . Parts Field Recycled . | . . . . . . . . . . . . . . . . . . . . . . . . . . . . . . . . . . . . . . Retrieved Matter . | . . . . . . . . . . . . . . . . . . . . . . . . . . . . . . . . . . . . . . Parts Self-Destructed 66 | . . 27 . . . . . . . . 4 35 . . . . . . . . . . . . . . . . . . . . . . . . . Prevented 32 | . . 8 . . . . . . . . 16 . . . 8 . . . . . . . . . . . . . . . . . . . . . . Parts Restored 9 | . . . . . . . . . . . . . . . . . . . . . . . . . . . . . . . . . . . . 8 1 Faulty 9 | . . . . . . . . . . . . . . . . . . . . . . . . . . . . . . . . . . . . 8 1 Kills | -11 -10 -10 -8 -8 -8 -8 -8 -6 -6 -6 -6 -6 -6 -6 -5 -5 -5 -5 -5 -5 -5 -5 -5 -4 -4 -4 -4 -4 -3 -3 -3 -3 -2 -2 -2 -2 -1 ------- Run | Yrd Mat Sub Mat Gar Mat Sto Rec Fac Was Fac Low Low Zio Dee Pro Fac Was Fac Ext Cet Arc Hub Gar Fac Was Fac Arm Lab Res Gar Res Tes Res Gar Qua Frg Acc Combat Hostiles Destroyed 1592 | . 8 23 22 34 38 6 16 15 . 26 8 20 8 48 9 37 3 14 31 7 4 1 35 9 6 48 85 1 81 54 154 90 18 26 34 437 136 Melee 21 | . . . . . . . . . . . . . . . . . . . 1 . . . . . . . . . . . . . . . 12 8 . Guns 91 | . 1 . 16 33 18 6 16 . . . . . . . . . . . . . . . . . . . . . . . . . . 1 . . . Cannons 1297 | . 2 21 3 . 12 . . 15 . 25 4 20 8 7 6 32 3 13 23 2 4 1 32 9 3 43 53 1 79 54 154 87 18 25 14 389 135 AOE 67 | . 5 . 1 . 7 . . . . . 1 . . 35 . . . . . . . . 3 . . 2 . . 2 . . 3 . . 5 3 . Classes Destroyed 40 | . 5 1 4 1 5 . 2 . . 1 1 1 4 2 . . 1 . 3 . . . . . . . 1 . 3 . 1 2 . 1 . 1 . Worker 36 | . 1 . 1 . 4 . . 5 . 3 . . . . . 1 . 2 . . . . . 1 . 6 . . . . 5 . . . 1 1 5 Builder 26 | . . . . . 2 1 1 1 . 2 . . . . . 2 . . 3 . . . . . . 2 . . . . . . . . . 4 8 Tunneler 9 | . . . . . 1 . . 1 . 1 . . . . . . . . 1 . . . . . . 2 . . . . 1 . . . . . 2 Hauler 31 | . 1 . 5 . 6 . . 6 . 2 . . . . . 1 . 3 . . . . . . . 4 . . 1 . 1 . . . 1 . . Recycler 39 | . . . 3 . . 1 . 2 . 2 . . . . . 3 . . 1 . . 1 . 3 . 10 . . 1 . 2 3 . . 4 . 3 Carrier 47 | . . . . . . . . . . . . . . . . . . . 1 . . . . . . . 1 . . . 13 3 . . . 20 9 Mechanic 35 | . . . . . . . . . . . . . . . . . . . . . . . . . . . 1 . . . 8 3 . . 1 16 6 Operator 17 | . . . 3 . 2 . . 2 . 1 . . . . . 1 . 1 . . . . . . . 2 1 . . . . . . . 1 2 1 Drone 15 | . . . . . . . . . . . . . 1 . . . . . . . . . . . . . . . . . . . . 1 1 12 . Watcher 64 | . 1 . 4 . 5 . . . . 6 . . . . . 6 . 4 1 2 . 1 . 4 . 5 4 . . . 4 2 3 . 1 4 7 Swarmer 131 | . 3 4 7 4 3 . 3 . . 2 . . . . 2 4 . 6 2 . . . 19 . . 19 8 . 18 16 3 3 . . . . 5 Cutter 16 | . . . . 3 . . . . . . . . . . . . . . . . . . . . . . . . . 4 . . . . . . 9 Saboteur 38 | . . . . . . . . . . . . . . . . . . . 1 . . . . . . . . . . . 9 2 . . . 23 3 Grunt 522 | . 5 7 5 23 21 6 1 6 . 8 . 8 . . 2 18 . . 9 . . . 10 . . 10 31 . 17 14 55 46 9 11 6 134 60 Brawler 63 | . . . . . 3 . 1 . . 1 . 3 . . 2 2 . . . . . . . . . . 6 . 1 . 11 4 . . . 25 4 Duelist 71 | . . . . . 2 . . . . . . 2 . . 1 1 . . 4 . . . 2 . . . 3 . . . 15 5 . 1 1 25 9 Protector 43 | . . . . . . . 1 . . . . . . . . . . . . . . . . . . . 3 . . . 7 5 . . . 22 5 Researcher 6 | . . . . . . . . . . . . . . . . . . . . . . . . . . . . . . . . . . . . 6 . Sentry 134 | . . . 7 3 7 . 5 8 . 3 1 2 . . 1 5 . 4 9 . 4 1 4 4 . 8 6 . 4 14 2 . . 5 3 22 2 Demolisher 17 | . . . . . . . . . . . . . . . . . . . 1 . . . . . . . 3 . 9 . . . . . . 1 3 Specialist 14 | . . . . . . . . . . . 3 . . . . . . . . . . . . . . . 4 . . . . . . . . 7 . Hunter 111 | . . . 3 1 1 . . . . 6 2 1 . . . . . 2 2 . . . . 3 . 6 5 . 4 3 19 8 4 3 4 29 5 Programmer 126 | . . . . . . . 1 1 . 5 1 2 . . 1 6 . 2 1 . . . . 2 . 4 13 . 3 1 22 9 5 . . 39 8 Heavy 6 | . . . . . 1 . . . . . . . . . . . . . . . . . . . . 1 2 . . . 2 . . . . . . Q-Series 11 | . . . . . . . . . . . . . . . . . . . . . . . . . . . . . . . . 1 . . 2 4 4 Behemoth 11 | . . . . . . . . . . 1 1 . . . . 1 . . 2 . . . . . . . 1 . . 2 . . . 1 . 1 1 Compactor 9 | . . . . . . . . . . . . . . . . . 3 . . . . . . . 6 . . . . . . . . . . . . Cetus Guard 7 | . . . . . . . . . . . . . . . . . . . . 7 . . . . . . . . . . . . . . . . . Quarantine Guard 12 | . . . . . . . . . . . . . . . . . . . . . . . . . . . . . . . . . . . 12 . . Hotshot 8 | . . . . . . . . . . . . . . . . . . . . . . . . . . . . . . . . . . . . 8 . Decapitator 21 | . . . . . . . . . . . . . . . . . . . . . . . . . . . . . . . . . . . . 21 . Immortal 4 | . . . . . . . . . . . . . . . . . . . . . . . . . . . . . . . . . . . . 4 . Overlord 1 | . . . . . . . . . . . . . . . . . . . . . . . . . . . . . . . . . . . . 1 . Tracker 26 | . . . . . . . . . . . . . . . . . . . . . . . . . . . . . 1 . 2 1 . . 4 13 5 Combat Programmer 18 | . . . . . . . . . . . . . . . . . . . . . . . . . . . . . . . 1 1 . . 1 13 2 Investigator 9 | . . . . . . . . . . . . . . . . . . . . . . . . . . . . . . . 2 2 . . . 4 1 Striker 38 | . . . . . . . . . . . . . . . . . . . . . . . . . . . . . 15 . 5 3 . . . 12 3 Executioner 27 | . . . . . . . . . . . . . . . . . . . . . . . . . . . . . 4 . 1 1 . . . 13 8 Alpha 7 5 | . . . . . . . . . . . . . . . . . . . . . . . . . . . . . . . . 1 . . . 4 . V-Series 4 | . . . . . . . . . . . . . . . . . . . . . . . . . . . . . . . . . . . . 4 . Subdweller 16 | . . 12 . . . . 4 . . . . . . . . . . . . . . . . . . . . . . . . . . . . . . Explorer 1 | . . . . . . . . . . . . . 1 . . . . . . . . . . . . . . . . . . . . . . . . Zionite 52 | . . . . . . . . . . . . . 52 . . . . . . . . . . . . . . . . . . . . . . . . Z-Light 6 | . . . . . . . . . . . . . . 6 . . . . . . . . . . . . . . . . . . . . . . . Packrat 1 | . . . . . . . . . . . . 1 . . . . . . . . . . . . . . . . . . . . . . . . . Tinkerer 4 | . . . . . . . . . . . . . 3 . . . . . . . . . . . . . . . . . . . . . . 1 . Assembled 42 | . . . . . . . . . . . . . . 42 . . . . . . . . . . . . . . . . . . . . . . . Thug 2 | . . . . . . . . . . . . . 1 . . . . . 1 . . . . . . . . . . . . . . . . . . Butcher 1 | . . . . . . . . . . . . . . . . . . . 1 . . . . . . . . . . . . . . . . . . Marauder 2 | . . . . . . . . . . . . . 2 . . . . . . . . . . . . . . . . . . . . . . . . Fireman 3 | . . . . . . . . . . . . . . . . . . . . . . . . . . . . . . . . . . 3 . . . Mutant 4 | . . . . . . . . . . . . 2 2 . . . . . . . . . . . . . . . . . . . . . . . . Infiltrator 1 | . . . . . . . . . . . . . . . . . . . . . . . . . . . . . . . . . . 1 . . . Revision 5 | . . . . . . . . . . . . . . . . . . . . . . . . . . . . . 5 . . . . . . . . Best Kill Streak 44 | . 6 5 9 5 5 4 4 4 . 8 6 5 13 35 6 5 5 5 7 5 4 2 5 3 5 12 11 1 13 10 25 41 12 6 7 44 33 Combat Bots Only 37 | . 5 5 8 5 5 2 4 4 . 5 6 5 1 35 6 5 2 5 6 4 4 1 5 2 5 6 11 1 13 10 23 23 12 6 6 37 28 Max Kills in Single Turn 6 | . 2 1 3 2 3 2 2 2 . 2 1 1 1 6 1 1 1 2 2 1 1 1 2 1 1 4 2 1 1 1 1 3 1 1 2 3 2 Gunslinging 2 | . . . 2 1 . . 1 . . . . . . . . . . . . . . . . . . . . . . . . . . . . . . Exploded 6 | . 2 . 1 . 3 . . . . . 1 . . 6 . . . . . . . . 2 . . 2 . . 1 . . 2 . . 1 2 . Melee 1 | . . . . . . . . . . . . . . . . . . . 1 . . . . . . . . . . . . . . . 1 1 . Uniques/NPCs Destroyed 4 | . . . . . . . . . . . . . 1 . . . . . 1 . . . . . . . . 1 . . . . . . . 1 . Imprinter (-6/Zion) A7 (-5/Extension) A5 (-4/Lab) Superfortress (-2/Protoforge) Combat | -11 -10 -10 -8 -8 -8 -8 -8 -6 -6 -6 -6 -6 -6 -6 -5 -5 -5 -5 -5 -5 -5 -5 -5 -4 -4 -4 -4 -4 -3 -3 -3 -3 -2 -2 -2 -2 -1 -------- Run | Yrd Mat Sub Mat Gar Mat Sto Rec Fac Was Fac Low Low Zio Dee Pro Fac Was Fac Ext Cet Arc Hub Gar Fac Was Fac Arm Lab Res Gar Res Tes Res Gar Qua Frg Acc Hostile Shots Fired 4715 | . 26 107 86 113 175 18 52 28 4 121 38 41 175 50 28 135 . 63 221 12 2 3 77 36 . 140 486 51 47 69 100 419 59 47 382 1006 298 Missed 1443 | . 8 23 21 34 47 3 11 10 3 40 15 11 78 22 12 49 . 28 73 2 2 2 23 11 . 43 121 10 18 12 18 96 23 14 82 402 76 Deflected 35 | . . . . . . . . . . . . . . . . . . . . . . . . . . 10 . . . . . . . . . 25 . Hits 3272 | . 18 84 65 79 128 15 41 18 1 81 23 30 97 28 16 86 . 35 148 10 . 1 54 25 . 97 365 41 29 57 82 323 36 33 300 604 222 Melee 106 | . . . . 9 3 . . . . . . . 7 2 . . . . 1 . . . . . . . 3 . . . 8 9 . . 20 38 6 Projectile 3166 | . 18 84 65 70 125 15 41 18 1 81 23 30 90 26 16 86 . 35 147 10 . 1 54 25 . 97 362 41 29 57 74 314 36 33 280 566 216 AOE 74 | . . . . 1 . . . . . . . . . . . . . . . . . . . . . . 28 . 1 . 2 1 . . 24 10 7 Critical Strikes 182 | . . 1 2 9 7 3 2 . . 1 2 . . . . 4 . 2 6 3 . . . 1 . 1 16 . 1 1 5 13 2 1 19 69 11 Actively Blocked 3 | . . . . . . . . . . . . . . . . . . . . 1 . . . 1 . . . . . . 1 . . . . . . Part Disruptions 2 | . . . . . . . . . . . . . . . . . . . 1 . . . . . . . . . . . . . . . . 1 . Damage Taken 63563 | . 205 1486 917 1267 2325 274 658 120 53 1274 378 551 1060 583 285 1308 . 853 2722 253 . 20 1080 492 . 982 7893 1069 933 806 1107 5641 642 775 8404 12079 5068 Core 6197 | . 21 387 137 215 307 . 131 . . 23 71 62 68 28 12 154 . 33 215 . . . 139 . . 50 633 80 147 25 58 389 19 85 494 841 1373 Absorbed by Shields 9315 | . . . . 42 . . . 132 55 154 . . . . . . . . 278 . . . . 96 . 974 853 . 162 322 561 359 . . 736 4419 172 Reduced by Siege Mode 982 | . . . . . . . . . . 5 . 5 . . . . . . . . . . . . . . 104 142 13 21 238 442 . . . . 12 Redirected to Core 817 | . . . . . . . . . . . . . . . . . . . . . . . . . . . . . . . . . . . . . 817 Redirected to Shielding 485 | . . . . . . . . . . . . . . . . . . . . 17 . . 108 45 . . . . . . 95 115 30 71 4 . . Ignored by Resistances 1964 | . . . . . . . . . . . . . . . . . . . . . . . . . . . 113 . 22 178 . 637 . . . 509 505 Regen/Repaired (Parts) 21451 | . . . . . . . 161 25 . 576 412 247 548 . 57 1211 . 384 238 721 110 . 671 219 . 408 2522 686 1134 . . 884 387 678 5622 3219 331 Core Remaining (%) 68 | 100 . 29 . . . . 46 . . . . . . . 94 . . . . . . . 86 . . . . 61 . . . 74 . . . 59 . Volleys Fired 3912 | . 18 58 93 85 129 13 36 59 . 78 20 52 154 59 32 144 34 80 72 22 6 10 74 41 25 176 225 32 157 143 351 245 45 68 110 732 234 Largest 4 | . 2 2 3 3 3 3 3 1 . 1 1 1 1 1 1 1 1 2 1 4 1 1 1 1 1 1 1 1 1 1 1 1 1 2 2 2 1 Hottest 670 | . 130 160 216 195 203 240 240 180 . 190 190 190 190 186 186 105 101 131 98 250 83 68 90 104 148 148 397 164 164 164 164 164 123 467 428 670 601 Shots Fired 4401 | . 32 89 172 215 331 40 83 58 . 78 20 52 154 55 31 142 32 82 72 39 6 10 74 41 24 173 207 27 157 143 347 238 45 70 115 722 225 Gun 625 | . 4 . 109 214 170 40 81 . . . . . . . . . . 2 . . . . . . . . . . . . . . . 4 . 1 . Cannon 3722 | . 24 89 63 . 153 . . 58 . 78 19 52 154 32 31 142 32 80 72 39 6 10 74 41 24 173 207 27 157 143 347 236 45 66 104 719 225 Launcher 50 | . 4 . . 1 8 . 2 . . . . . . 23 . . . . . . . . . . . . . . . . . 2 . . 8 2 . Special 4 | . . . . . . . . . . . 1 . . . . . . . . . . . . . . . . . . . . . . . 3 . . Kinetic 1022 | . . 1 6 . . . 8 11 . . . 52 130 . . 34 . 27 . . . 10 53 5 . . 23 27 6 . . . . 5 102 520 2 Thermal 2600 | . 4 59 138 214 323 40 69 47 . 72 . . 24 . . 48 32 26 1 . 6 . 21 36 24 173 11 . 151 143 347 236 45 65 2 20 223 Explosive 50 | . 4 . . 1 8 . 2 . . . . . . 23 . . . . . . . . . . . . . . . . . 2 . . 8 2 . Electromagnetic 725 | . 24 29 28 . . . 4 . . 6 19 . . 32 31 60 . 29 71 39 . . . . . . 173 . . . . . . . . 180 . Robot Hit Streak 293 | . 5 15 26 22 10 10 14 13 . 13 5 11 11 10 4 9 17 18 10 17 8 4 6 11 10 10 13 3 93 124 202 293 32 65 15 46 39 Robot Miss Streak 9 | . 2 1 5 5 4 5 5 4 . 6 4 4 4 3 2 6 1 8 6 6 2 1 2 3 1 3 9 5 2 . . 1 . 1 4 7 2 Penetration Max 2 | . . . . . . . . 1 . . . . . . . . . . . . . . 1 . . . 1 . . . . . . . . 2 1 Secondary Targets 22 | . . . 4 13 3 1 1 . . . . . . . . . . . . . . . . . . . . . . . . . . . . . . Max Gunslinging Chain 2 | . . . 2 1 1 1 1 . . . . . . . . . . . . . . . . . . . . . . . . . . . . . . Shots Hit Robots 2738 | . 18 62 127 132 203 30 58 46 . 65 12 39 110 24 12 53 29 45 54 26 4 4 43 25 19 101 119 10 96 31 78 108 15 35 131 575 199 Core Hits 1770 | . 19 24 96 122 89 23 35 36 . 38 11 20 54 79 4 32 3 25 35 9 4 3 30 12 3 50 43 2 52 36 126 80 15 21 62 355 122 Critical Kills 239 | . . 2 2 . . . . . . . . . . . . . . 1 . 1 . 1 3 2 3 4 10 . . . . . . . . 148 62 Critical Parts Destroyed 293 | . . . . . . . . 1 . . . . . . . . . . . . . . 4 2 . . 24 . . . . . . . . 163 99 Critical Strikes 589 | . . 2 4 3 5 . . 4 . 5 . . . . . . . 1 2 4 . 1 7 4 3 4 35 1 1 . . . . . 13 326 164 Burn 17 | . . . 1 3 5 . . 3 . 5 . . . . . . . . . . . . . . . . . . . . . . . . . . . Meltdown 11 | . . 2 2 . . . . . . . . . . . . . . . . . . . . . 3 4 . . . . . . . . . . . Destroy 542 | . . . . . . . . 1 . . . . . . . . . 1 . 3 . 1 7 4 . . 35 . . . . . . . . 326 164 Blast 2 | . . . . . . . . . . . . . . . . . . . . . . . . . . . . 1 1 . . . . . . . . Corrupt 4 | . . . 1 . . . . . . . . . . . . . . . 2 1 . . . . . . . . . . . . . . . . . Sever 13 | . . . . . . . . . . . . . . . . . . . . . . . . . . . . . . . . . . . 13 . . Melee Attacks 122 | . . . . . . . . . . . . . . . . . . . . . . . . . . . . . . . . . . . 83 39 . Kinetic 10 | . . . . . . . . . . . . . . . . . . . . . . . . . . . . . . . . . . . 10 . . Impact 3 | . . . . . . . . . . . . . . . . . . . . . . . . . . . . . . . . . . . . 3 . Slashing 109 | . . . . . . . . . . . . . . . . . . . . . . . . . . . . . . . . . . . 73 36 . Piercing . | . . . . . . . . . . . . . . . . . . . . . . . . . . . . . . . . . . . . . . Sneak Attacks 8 | . . . . . . . . . . . . . . . . . . . . . . . . . . . . . . . . . . . 5 3 . Combat Hostiles 4 | . . . . . . . . . . . . . . . . . . . . . . . . . . . . . . . . . . . 2 2 . Follow-up Attacks . | . . . . . . . . . . . . . . . . . . . . . . . . . . . . . . . . . . . . . . Damage Inflicted 578517 | . 908 1675 2761 2436 5201 637 1400 4631 78 7121 1197 4138 10587 5629 1280 9023 3698 3940 4570 1304 348 535 5781 3175 3625 20237 20532 1530 45858 20714 64850 42638 6306 9254 14171 191881 54868 Guns 8226 | . 45 . 1472 2396 2146 637 1400 . . . . . . . . . . . . . . . . . . . . . . . . . . 130 . . . Cannons 548916 | . 376 1675 1157 . 2081 . . 4378 78 7008 800 3888 10161 2144 1280 8886 3698 3815 4565 1304 348 535 5384 3163 3625 19114 20316 1530 45520 20674 64811 41036 6306 9124 7360 188128 54648 Explosions 12420 | . 466 . 131 40 954 . . 253 . . 397 250 426 3485 . . . 125 . . . . 397 . . 632 153 . 333 . 37 1578 . . 1434 1139 190 Melee 7497 | . . . . . . . . . . . . . . . . . . . . . . . . . . . . . . . . . . . 5250 2247 . Ramming 1416 | . 21 . 1 . 20 . . . . 113 . . . . . 137 . . 5 . . . . 12 . 491 21 . 5 40 2 24 . . 127 367 30 Kinetic 205115 | . . . 77 . . . 96 802 . . . 3888 8694 . . 1940 . 1285 . . . 535 3790 235 . . 3828 1530 731 . . . . 79 7633 169523 449 Thermal 307990 | . 68 1211 2099 2396 4227 637 1304 3760 . 6559 397 250 1893 . . 3059 3698 1342 . . 348 . 1991 2928 3625 19460 1621 . 45037 20674 64848 41129 6306 9175 140 3537 54271 Explosive 8731 | . 443 . . 40 954 . . . . . . . . 3485 . . . 125 . . . . . . . 286 38 . 85 . . 1485 . . 1434 356 . Electromagnetic 48061 | . 376 464 584 . . . . 69 . 449 800 . . 2144 1280 3887 . 1188 4565 1304 . . . . . . 14982 . . . . . . . . 15851 118 Impact . | . . . . . . . . . . . . . . . . . . . . . . . . . . . . . . . . . . . . . . Slashing 7126 | . . . . . . . . . . . . . . . . . . . . . . . . . . . 42 . . . . . . . 4837 2247 . Piercing . | . . . . . . . . . . . . . . . . . . . . . . . . . . . . . . . . . . . . . . Phasic 78 | . . . . . . . . . 78 . . . . . . . . . . . . . . . . . . . . . . . . . . . . Highest Corruption 84 | . . 18 2 27 53 53 53 26 . 14 14 6 12 12 26 9 24 24 5 5 . . . 1 10 12 78 84 1 . 17 17 18 18 27 21 15 Average Corruption 20 | . . 13 2 16 42 53 39 10 . 3 6 4 12 12 20 6 18 15 2 4 . . . 1 7 9 33 81 1 . 13 8 17 18 22 7 12 Corruption Purged 20 | . . . . . . . . . . . . . . . . . . 8 . 5 . . . . . 7 . . . . . . . . . . . Corruption Blocked . | . . . . . . . . . . . . . . . . . . . . . . . . . . . . . . . . . . . . . . Effects 1427 | . . 33 . 68 163 54 215 15 . 14 9 21 3 18 17 33 12 19 1 5 . . . . 5 60 146 33 11 . 15 35 9 62 131 134 86 Message Errors 316 | . . 5 . 16 32 15 42 5 . 4 2 7 . 6 2 6 . 3 1 1 . . . . 1 18 32 6 6 . 1 5 3 15 31 31 20 Matter Fused 327 | . . 11 . 19 34 10 56 5 . 3 2 6 . 2 3 7 1 4 . . . . . . 1 16 32 5 3 . 3 7 3 11 33 37 13 Heat Flow Errors 143 | . . 4 . 7 10 6 25 1 . 2 3 4 . 2 2 5 1 . . . . . . . . 7 15 6 . . 2 4 . 4 14 10 9 Energy Discharges 176 | . . 2 . 6 17 7 30 . . 3 1 3 1 1 6 7 3 3 . 2 . . . . . 5 18 3 . . 3 5 1 11 16 11 11 Parts Rejected 16 | . . . . . 4 . . . . . . . . . 1 . . . . . . . . . . 1 1 . . . . 1 . . 3 3 2 Parts Fused 23 | . . . . 2 4 1 1 . . . . . 1 . . . . 1 . . . . . . . . 3 1 . . . . . . 2 2 5 Data Loss (minor) 178 | . . 4 . 7 19 7 30 1 . 1 1 . 1 . 1 2 2 4 . 1 . . . . 1 6 20 5 2 . 1 3 1 10 15 22 11 Data Loss (major) 48 | . . 1 . 1 7 1 7 . . . . 1 . . . 4 . 2 . . . . . . 1 3 3 2 . . 1 2 1 1 4 3 3 Misfires 29 | . . 2 . 2 4 3 7 . . . . . . 1 . . . 1 . . . . . . . . . . . . . . . 4 5 . . Alerts 31 | . . . . 3 3 1 6 2 . 1 . . . 1 1 . . 1 . . . . . . . 1 1 . . . . 1 . 2 2 3 2 Misdirections 11 | . . . . . . . 1 . . . . . . . . . 3 . . . . . . . . . 3 . . . . . . 1 2 . 1 Weapon Failures 129 | . . 4 . 5 29 3 10 1 . . . . . 5 1 2 2 . . 1 . . . . 1 3 18 5 . . 4 7 . 3 4 12 9 Overload Shots . | . . . . . . . . . . . . . . . . . . . . . . . . . . . . . . . . . . . . . . Overflow Damage 126963 | . 15 5 21 . 60 . . 362 . 999 2 448 1317 680 110 1615 61 524 382 . . 119 764 593 122 5221 4577 88 13237 4825 15048 10284 1619 1240 1678 46866 14081 Projectiles 125849 | . 8 5 8 . 53 . . 362 . 993 2 416 1317 564 110 1584 61 494 382 . . 119 754 593 122 4913 4547 88 13237 4825 15048 10219 1619 1240 1532 46553 14081 Explosions 506 | . 7 . 13 . 7 . . . . . . 32 . 116 . . . 30 . . . . 10 . . 130 30 . . . . 65 . . 53 13 . Melee 608 | . . . . . . . . . . 6 . . . . . 31 . . . . . . . . . 178 . . . . . . . . 93 300 . Knockbacks 251 | . . . . . . . . 5 . 2 . 19 38 . . 2 . . . . . 1 8 . . 3 7 9 . . . . . . 13 144 . Impact 10 | . . . . . . . . . . 1 . . . . . . . . . . . . . . . 3 . . . . . . . . . 6 . Kinetic 214 | . . . . . . . . 5 . . . 17 38 . . 2 . . . . . 1 8 . . . 6 9 . . . . . . 13 115 . Secondary 27 | . . . . . . . . . . 1 . 2 . . . . . . . . . . . . . . 1 . . . . . . . . 23 . Self-Inflicted Damage 1497 | . 15 . . . 92 . 40 . . . . . . 57 . . . 139 2 . . . 84 . . . 74 . . . . 159 . 172 381 282 . Shots 26 | . 1 . . . 3 . 1 . . . . . . 1 . . . 2 . . . . 1 . . . 2 . . . . 2 . 1 6 6 . Rammed 19 | . 5 . . . 3 . . . . 4 . . . . . . . . 2 . . . . . . . 1 . 1 1 . 2 . . . . . Targets Rammed 70 | . 5 . 1 . 5 . . . . 5 . . . . . 4 . . 2 . . . . 1 . 12 1 . 1 1 1 2 . . 11 17 1 Kicked 48 | . . . 1 . 2 . . . . . . . . . . 4 . . . . . . . . . 12 . . . . . . . . 11 17 1 Crushed 3 | . . . . . . . . . . 1 . . . . . . . . . . . . . 1 . . . . . . 1 . . . . . . Highest Temperature 520 | . 27 426 308 299 382 230 253 191 . 423 180 392 327 304 300 190 80 240 109 199 203 245 56 126 130 476 416 198 389 110 352 310 49 278 520 430 167 Average Temperature 88 | . 12 112 76 84 121 96 64 42 . 109 61 84 101 106 110 43 25 23 11 77 104 53 31 43 51 78 116 113 86 65 77 77 27 124 84 107 114 Received Heat Transfer 8682 | . 75 270 180 666 846 189 153 12 . 119 54 126 128 72 6 81 . 36 751 . . . 141 72 . 57 631 . 43 24 86 929 72 259 190 1987 427 Thermoelectric Energy+ 96406 | . . . . . . . . . . . . . . . . . . . . . . . . . . . . . . . . . . . . 60441 35965 Effects 25 | . . 2 . 2 3 . 2 . . 2 . . 1 . 1 . . . . . . . . . . 3 4 . . . . . . 1 4 . . Energy Bleed 6 | . . . . . 2 . . . . 1 . . 1 . . . . . . . . . . . . . 1 . . . . . . . 1 . . Interference 18 | . . 2 . 2 1 . 2 . . 1 . . . . 1 . . . . . . . . . . 3 3 . . . . . . 1 2 . . Short Circuit 1 | . . . . . . . . . . . . . . . . . . . . . . . . . . . . . . . . . . . 1 . . Siege Activations 27 | . . . . . . . . . . 1 . 1 . . . . . . . . . . . . . . 4 1 3 2 9 5 . . . . 1 Total Turns 1454 | . . . . . . . . . . 12 . 8 . . . . . . . . . . . . . . 96 53 22 44 987 230 . . . . 2 Longest Duration 426 | . . . . . . . . . . 12 . 8 . . . . . . . . . . . . . . 37 53 11 36 426 99 . . . . 2 Martial Activations . | . . . . . . . . . . . . . . . . . . . . . . . . . . . . . . . . . . . . . . Shielding Activations 20 | . . . . . . . . . . . . . . . . . . . . . . . . . . 15 . . . . . . . . . 5 . Total Turns 352 | . . . . . . . . . . . . . . . . . . . . . . . . . . 243 . . . . . . . . . 109 . Longest Duration 43 | . . . . . . . . . . . . . . . . . . . . . . . . . . 43 . . . . . . . . . 38 . Robots Disrupted 2 | . 1 . . . . . . . . . . . . . . . . . . . . . . . . . . . . . . . . . 1 . . Combat Hostiles 2 | . 1 . . . . . . . . . . . . . . . . . . . . . . . . . . . . . . . . . 1 . . Robots Corrupted 117 | . . . 2 . . . . . . 1 3 . . 6 3 7 . 2 9 6 . . . . . 4 33 . . . . . . . . 41 . Combat Hostiles 103 | . . . 1 . . . . . . 1 3 . . 6 3 5 . 1 7 6 . . . . . . 32 . . . . . . . . 38 . Parts Fried 451 | . . . 7 . . . . . . 3 8 . . 25 10 31 . 16 58 10 . . . . . 3 199 . . . . . . . . 81 . Impact Corruptions 37 | . . . . . . . . . . 1 . . . . . 2 . . . . . . . . . 8 . . . . . . . . . 26 . Robots Melted 15 | . . 2 2 1 1 . . . . 1 . . . . . . . . . . . . . . 3 4 . . . . . . . . . . 1 Combat Hostiles 12 | . . 2 1 1 1 . . . . . . . . . . . . . . . . . . . 3 3 . . . . . . . . . . 1 Parts Melted 105 | . . 3 11 10 14 2 4 7 . 5 . . 1 . . . . 1 1 . . . . 3 6 9 3 . 3 . . 1 4 3 1 . 13 Heat Transferred 57152 | . 161 1628 3247 4369 7955 1450 2746 2135 . 3411 350 200 522 . . 814 1147 444 . . 200 . 485 851 961 5450 383 . 150 . 25 100 1700 2797 37 684 12750 Parts Sabotaged 12 | . . . . . . . . . . . . . . . . . . . 1 . . . . . . . 3 . . . 4 4 . . . . . Parts Stolen 2 | . . . . . . . . . . . . . . . . . . . . . . . . . . . . . . . . . . . 2 . . Parts Stripped 43 | . . . . . . . . . . . . . . . . . . . . . . . . . . . . . . . . . . . 43 . . Power Chain Reactions 28 | . 1 . 2 . . . . . . . 2 2 7 . . . . . 1 . . . 2 . . . 1 . 2 . 1 2 . . . 5 . Alert | -11 -10 -10 -8 -8 -8 -8 -8 -6 -6 -6 -6 -6 -6 -6 -5 -5 -5 -5 -5 -5 -5 -5 -5 -4 -4 -4 -4 -4 -3 -3 -3 -3 -2 -2 -2 -2 -1 ------- Run | Yrd Mat Sub Mat Gar Mat Sto Rec Fac Was Fac Low Low Zio Dee Pro Fac Was Fac Ext Cet Arc Hub Gar Fac Was Fac Arm Lab Res Gar Res Tes Res Gar Qua Frg Acc Maximum Alert Level 5 | . 1 . 1 4 3 1 . 4 2 3 . . . . . 4 2 2 5 4 2 . 3 2 1 3 4 . 4 5 5 5 5 5 4 5 5 Low Security (%) 21 | 100 97 . 91 3 . 60 100 23 . . . . . . . 22 . . . . 7 100 16 . 87 6 . . 69 . . . . . . . . Level 1 7 | . 2 . 8 15 . 39 . 16 . 9 . . . . . 17 . 70 29 . 72 . 17 . 12 30 . . 3 . . . . . . . . Level 2 15 | . . . . 38 52 . . 52 100 47 . . . . . 33 100 29 7 . 19 . 15 100 . 47 41 . 3 . . . . . 9 2 . Level 3 19 | . . . . 24 47 . . 3 . 42 . . . . . 4 . . 33 71 . . 51 . . 15 51 . 11 10 1 . . . 77 9 . Level 4 10 | . . . . 18 . . . 3 . . . . . . . 22 . . 14 28 . . . . . . 6 . 12 21 34 . . 12 12 16 . Level 5 13 | . . . . . . . . . . . . . . . . . . . . . . . . . . . . . . 67 . 47 100 87 . 41 56 High Security 11 | . . . . . . . . . . . . . . . . . . . 14 . . . . . . . . . . . 63 52 . . . 28 43 Max Security . | . . . . . . . . . . . . . . . . . . . . . . . . . . . . . . . . . . . . . . Sterilizations 2 | . . . . . . . . . . 1 . . . . . . . . . . . . . . . . . . . . 1 . . . . . . Peak Influence 10134 | . 206 . 286 1135 950 384 78 1380 481 861 . . . . . 1553 543 632 2010 1150 434 106 1015 597 206 858 1451 . 1370 2220 3898 3714 2088 2029 1351 10134 9040 Initial 6074 | . . . . 183 553 384 53 200 481 329 . . . . . 7 543 318 295 1100 410 61 2 532 206 93 415 . . 1027 1248 2192 2088 1488 1138 624 6074 Average 1440 | . 87 . 69 712 730 204 12 448 476 610 . . . . . 611 501 376 922 1071 314 62 608 545 172 521 757 . 325 1724 2553 2631 1903 1841 967 3864 6779 Influence Increases 44123 | . 472 220 768 1042 1305 161 393 2302 . 1120 170 465 20 . 200 2143 2 744 2141 171 84 82 1063 295 8 1491 2058 . 1805 1243 3218 1950 376 576 1617 10975 3443 Destroy 0b10 Robot/C 25385 | . 200 220 440 680 760 120 220 580 . 520 160 360 20 . 180 760 . 280 1000 140 80 20 630 135 . 750 1245 . 1200 840 2430 1365 270 375 555 6720 2130 Destroy 0b10 Robot/NC 1450 | . 15 . 80 . 100 10 10 115 . 85 . . . . . 65 . 55 50 15 . 10 . 32 . 120 36 . 8 . 112 48 12 4 44 280 144 Destroy Leader 4390 | . 54 . 158 30 202 10 . 122 . 136 10 20 . . 20 164 . 66 52 . . 12 32 64 . 170 258 . 258 40 466 236 62 32 190 1088 438 Allied During Kill 1753 | . 4 . . . . . . 224 . 8 . 10 . . . . . . 774 . . . 51 . . 21 21 . 173 53 . 3 . . 72 301 38 Trap Triggered on 0b10 16 | . . . . . . . . . . . . . . . . . . . . . . . . . . 16 . . . . . . . . . . . Successful Hack 254 | . 14 . 11 12 10 5 16 36 . 8 . . . . . . . 8 30 . . 5 11 2 . 2 4 . . 11 40 . 5 9 6 9 . Select Force Hacks 240 | . 30 . 30 . 30 . 90 30 . . . . . . . 30 . . . . . . . . . . . . . . . . . . . . . Disable Machine 2061 | . 30 . 30 . 105 . 15 270 . 75 . . . . . 120 . 120 45 . . 15 60 . . 120 132 . 36 72 24 72 . 12 168 420 120 Anti-Garrison Action 488 | . . . . 250 . . . . . . . . . . . . . . . . . . 88 . . . . . . 75 . . . 75 . . . Destroy Structure 4686 | . 23 . 19 70 53 1 42 172 . 53 . . . . . 128 2 170 60 16 4 20 179 38 8 220 146 . 118 140 86 106 27 33 453 1834 465 Advance Influence 200 | . . . . . . . . 200 . . . . . . . . . . . . . . . . . . . . . . . . . . . . . Partial Spotted 141 | . . . . . 15 . . 15 . . . . . . . 30 . 45 . . . . . 24 . . . . . . . . . . . 12 . Lose Combat Pursuer 1371 | . . . . . 30 15 . . . 105 . 75 . . . 270 . . . . . . 12 . . 72 216 . 12 12 60 120 . 36 12 216 108 Miscellaneous 1688 | . 102 . . . . . . 538 . 130 . . . . . 576 . . 130 . . . . . . . . . . . . . . . 117 95 . Influence Decreases 35108 | . 302 390 485 190 1530 934 530 925 906 890 634 560 162 . 188 602 1100 595 851 1080 933 255 51 721 463 776 1458 1449 435 393 1540 2134 2106 536 2531 1961 4512 Entered New Map 19241 | . . 82 . 100 582 526 84 . 896 142 260 46 142 . . 5 1010 137 309 834 615 115 1 483 383 41 434 1449 . 343 972 1706 1626 496 886 486 4050 Time Decay 11984 | . 302 298 479 . 668 398 436 583 10 518 374 514 20 . 188 527 90 458 362 246 318 140 . 238 80 565 674 . 375 . 538 318 310 . 770 765 422 Lost Part 956 | . . 10 6 90 130 10 10 . . 20 . . . . . 30 . . 40 . . . 10 . . . 120 . . 10 10 110 10 20 60 220 40 Lost Ally 1152 | . . . . . . . . 192 . 60 . . . . . 40 . . 140 . . . 40 . . 20 80 . 60 40 20 . 10 20 90 340 . Purge Threat 1775 | . . . . . 150 . . 150 . 150 . . . . . . . . . . . . . . . 150 150 . . . . . 150 . 725 150 . Squads Dispatched 315 | . 6 . 5 . 6 . . 11 . 3 . 1 . . . 9 . 3 8 . . . . 2 . 8 16 . 6 . 43 29 3 . 12 103 41 Investigation 23 | . 4 . 2 . 1 . . 5 . . . . . . . 2 . . 2 . . . . . . 2 . . 1 . 2 . 1 . 1 . . Extermination 39 | . . . . . . . . 3 . 3 . . . . . 4 . 2 . . . . . 2 . 3 6 . . . 2 2 1 . 2 7 2 Reinforcement 31 | . 2 . 3 . 5 . . 2 . . . . . . . 1 . 1 1 . . . . . . 3 3 . 2 . 1 1 . . 3 2 1 Assault 204 | . . . . . . . . . . . . 1 . . . 2 . . 5 . . . . . . . 7 . . . 37 25 1 . 4 89 33 Garrison 4 | . . . . . . . . 1 . . . . . . . . . . . . . . . . . . . . . . . . . . . . 3 Intercept 14 | . . . . . . . . . . . . . . . . . . . . . . . . . . . . . 3 . 1 1 . . 2 5 2 Searches Triggered . | . . . . . . . . . . . . . . . . . . . . . . . . . . . . . . . . . . . . . . Construction Impeded 8 | . . . . . 1 . . 1 . . . . . . . 1 . . 1 . . . . . . 1 . . . . . 1 . . 1 . 1 Haulers Reinforced 2 | . . . . . . . . . . . . . . . . . . . . . . . . . . 1 . . . . . . . . 1 . . Active Scanning Responses . | . . . . . . . . . . . . . . . . . . . . . . . . . . . . . . . . . . . . . . Cargo Convoy Interrupts 1 | . . . . . . . . . . . . . . . . 1 . . . . . . . . . . . . . . . . . . . . . Stealth | -11 -10 -10 -8 -8 -8 -8 -8 -6 -6 -6 -6 -6 -6 -6 -5 -5 -5 -5 -5 -5 -5 -5 -5 -4 -4 -4 -4 -4 -3 -3 -3 -3 -2 -2 -2 -2 -1 --------- Run | Yrd Mat Sub Mat Gar Mat Sto Rec Fac Was Fac Low Low Zio Dee Pro Fac Was Fac Ext Cet Arc Hub Gar Fac Was Fac Arm Lab Res Gar Res Tes Res Gar Qua Frg Acc Distress Signals 29 | . 1 . 1 . 4 1 1 1 . 1 . . . . . 2 . 1 1 1 . . . . . 2 2 . 3 . 1 1 2 . 1 1 1 Communications Jammed 45 | . . . . . . . . . . . . . . . . . . . . . . . . . . . . . . . . . . . . 45 . Distress Signals 12 | . . . . . . . . . . . . . . . . . . . . . . . . . . . . . . . . . . . . 12 . Times Spotted 1909 | . 21 24 33 39 60 9 16 24 7 36 8 24 61 41 11 48 6 22 79 8 1 3 41 12 6 58 115 1 69 33 87 118 21 20 51 531 165 Peak Tracking Total 54 | . 5 4 8 5 5 3 2 3 5 7 5 9 7 26 2 8 3 6 26 5 1 2 7 2 3 7 13 1 5 10 12 14 6 6 8 54 12 Tactical Retreats 64 | . . . . . 2 1 . . . 2 . 3 2 3 . 8 . . . . . . 1 . . 4 8 . 1 1 3 7 . 2 1 8 7 Traps | -11 -10 -10 -8 -8 -8 -8 -8 -6 -6 -6 -6 -6 -6 -6 -5 -5 -5 -5 -5 -5 -5 -5 -5 -4 -4 -4 -4 -4 -3 -3 -3 -3 -2 -2 -2 -2 -1 ------- Run | Yrd Mat Sub Mat Gar Mat Sto Rec Fac Was Fac Low Low Zio Dee Pro Fac Was Fac Ext Cet Arc Hub Gar Fac Was Fac Arm Lab Res Gar Res Tes Res Gar Qua Frg Acc Traps Triggered 62 | . 1 . 2 8 1 2 . 1 . 2 . . . . . 2 . 1 . . . . 5 2 . 6 2 . 2 1 . 4 1 6 1 12 . Indirectly . | . . . . . . . . . . . . . . . . . . . . . . . . . . . . . . . . . . . . . . Trap Hack Attempts . | . . . . . . . . . . . . . . . . . . . . . . . . . . . . . . . . . . . . . . Triggered . | . . . . . . . . . . . . . . . . . . . . . . . . . . . . . . . . . . . . . . Disarmed . | . . . . . . . . . . . . . . . . . . . . . . . . . . . . . . . . . . . . . . Reprogrammed . | . . . . . . . . . . . . . . . . . . . . . . . . . . . . . . . . . . . . . . Reused 2 | . . . . . . . . . . . . . . . . . . . . . . . . . . 2 . . . . . . . . . . . Traps Extracted . | . . . . . . . . . . . . . . . . . . . . . . . . . . . . . . . . . . . . . . Installed 9 | . . . . . . . . . . . . . . . . . . . . . . . . 5 . 4 . . . . . . . . . . . Triggered 2 | . . . . . . . . . . . . . . . . . . . . . . . . . . 2 . . . . . . . . . . . Most Traps Carried 4 | . . . . . . . . . . 3 . . . . . . . . . . . . . . . 4 . . . . . . . . . . . Machines | -11 -10 -10 -8 -8 -8 -8 -8 -6 -6 -6 -6 -6 -6 -6 -5 -5 -5 -5 -5 -5 -5 -5 -5 -4 -4 -4 -4 -4 -3 -3 -3 -3 -2 -2 -2 -2 -1 ---------- Run | Yrd Mat Sub Mat Gar Mat Sto Rec Fac Was Fac Low Low Zio Dee Pro Fac Was Fac Ext Cet Arc Hub Gar Fac Was Fac Arm Lab Res Gar Res Tes Res Gar Qua Frg Acc Machines Disabled 207 | . 2 1 2 2 7 . 1 18 . 5 2 4 5 1 . 8 . 8 7 . . 1 8 . . 12 11 3 3 7 2 7 . 1 14 55 10 Max in Single Turn 4 | . 1 1 1 1 2 . 1 4 . 2 2 1 1 1 . 1 . 2 1 . . 1 2 . . 4 1 1 1 1 1 1 . 1 2 2 2 Garrison Access 17 | . . . . . 1 . . 4 . 2 . . . . . 3 . . . . . . . . . 3 . . . . 1 . 1 . 1 1 . Garrison Relay 2 | . . . . 2 . . . . . . . . . . . . . . . . . . . . . . . . . . . . . . . . . Phase Generator 2 | . . . . . . . . . . . . . . . . . . . . . . . 1 . . . . . . . . . . 1 . . . Network Hub 1 | . . . . . . . . . . . . . . . . . . . . . . 1 . . . . . . . . . . . . . . . Energy Cycler 1 | . . . . . . . . . . . . . . . . . . . . . . . . . . . . . . . . . . . . . 1 Machines Repaired . | . . . . . . . . . . . . . . . . . . . . . . . . . . . . . . . . . . . . . . Machines Dismantled . | . . . . . . . . . . . . . . . . . . . . . . . . . . . . . . . . . . . . . . Machines Sabotaged . | . . . . . . . . . . . . . . . . . . . . . . . . . . . . . . . . . . . . . . Overloaded Fab Kills . | . . . . . . . . . . . . . . . . . . . . . . . . . . . . . . . . . . . . . . Hacking | -11 -10 -10 -8 -8 -8 -8 -8 -6 -6 -6 -6 -6 -6 -6 -5 -5 -5 -5 -5 -5 -5 -5 -5 -4 -4 -4 -4 -4 -3 -3 -3 -3 -2 -2 -2 -2 -1 --------- Run | Yrd Mat Sub Mat Gar Mat Sto Rec Fac Was Fac Low Low Zio Dee Pro Fac Was Fac Ext Cet Arc Hub Gar Fac Was Fac Arm Lab Res Gar Res Tes Res Gar Qua Frg Acc Machines Accessed 137 | . 7 2 7 3 10 3 10 13 . 8 . 2 . . 1 9 . 3 6 . . 2 4 2 . 11 6 . 3 1 4 1 4 1 10 4 . Terminals 75 | . 6 . 4 3 7 2 4 4 . 5 . . . . 1 1 . 2 6 . . 1 4 1 . 4 4 . . 1 3 1 1 1 7 2 . Fabricators 6 | . . . . . . . . 1 . 1 . . . . . 1 . . . . . . . . . . 1 . . . 1 . 1 . . . . Repair Stations 1 | . . . . . . . . . . . . . . . . . . 1 . . . . . . . . . . . . . . . . . . . Recycling Units 19 | . 1 . 1 . 1 1 5 2 . . . . . . . 4 . . . . . . . . . 3 1 . . . . . . . . . . Scanalyzers 12 | . . . 1 . 1 . . 2 . 1 . . . . . 1 . . . . . . . 1 . 1 . . 1 . . . . . 2 1 . Garrison Access 19 | . . . 1 . 1 . . 4 . 1 . . . . . 2 . . . . . 1 . . . 3 . . 2 . . . 2 . 1 1 . Total Hacks 317 | . 22 4 18 5 37 6 25 28 . 15 . 6 . . 1 22 . 9 12 . . 5 11 6 . 18 10 . 3 2 8 1 7 1 28 7 . Successful 156 | . 12 4 12 1 20 2 15 13 . 6 . 6 . . 1 9 . 4 6 . . 4 1 3 . 9 3 . 3 1 4 . 4 1 8 4 . Failed 157 | . 10 . 5 4 17 4 10 15 . 9 . . . . . 12 . 5 6 . . 1 10 2 . 9 7 . . 1 4 1 3 . 19 3 . Catastrophic 43 | . 1 . . 3 5 1 3 4 . 1 . . . . . 3 . . 2 . . . 2 2 . 3 2 . . . 2 . 1 . 7 1 . Database Lockouts 4 | . . . 1 . . . . . . . . . . . . 1 . . . . . . . 1 . . . . . . . . . . 1 . . Manual 125 | . 21 . 9 2 12 1 17 7 . 5 1 . . . . 6 . 6 6 . . 4 . 2 . 6 7 . . . 3 1 3 . 2 4 . Terminals 185 | . 20 . 10 5 20 4 9 12 . 11 . . . . 1 3 . 7 12 . . 4 11 2 . 8 8 . . 2 5 1 3 1 21 5 . Fabricators 13 | . . . . . . . . 1 . 2 . . . . . 4 . . . . . . . . . . 1 . . . 3 . 2 . . . . Repair Stations 2 | . . . . . . . . . . . . . . . . . . 2 . . . . . . . . . . . . . . . . . . . Recycling Units 45 | . 2 . 3 . 2 2 14 4 . . . . . . . 11 . . . . . . . . . 6 1 . . . . . . . . . . Scanalyzers 40 | . . . 4 . 13 . . 7 . 1 . . . . . 2 . . . . . . . 4 . 1 . . 1 . . . . . 6 1 . Garrison Access 20 | . . . 1 . 2 . . 4 . 1 . . . . . 2 . . . . . 1 . . . 3 . . 2 . . . 2 . 1 1 . Terminal Hacks 46 | . 2 4 2 1 3 1 3 1 . 2 . 6 . . 1 . . 1 2 . . 1 1 . . 2 1 . . 1 2 . 1 1 5 2 . Record 10 | . . 3 . . . . 1 . . . . 5 . . 1 . . . . . . . . . . . . . . . . . . . . . . Part Schematic 2 | . . . . . . . . . . . . . . . . . . 1 . . . . . . . . . . . . 1 . . . . . . Prototype ID Bank 1 | . . . 1 . . . . . . . . . . . . . . . . . . . . . . . . . . . . . . . . . . Open Door 4 | . . . . . . 1 . . . . . 1 . . . . . . 2 . . . . . . . . . . . . . . . . . . Branch Access Points 3 | . . . . . . . . . . 1 . . . . . . . . . . . . . . . 1 . . . . 1 . . . . . . Emergency Access Points 3 | . . . . 1 . . . . . . . . . . . . . . . . . . . . . . . . . 1 . . . 1 . . . Terminal Index 2 | . 1 . . . . . . . . . . . . . . . . . . . . . . . . . . . . . . . . . 1 . . Alert Level 2 | . . . 1 . . . . . . . . . . . . . . . . . . 1 . . . . . . . . . . . . . . . Unreport Threat 10 | . . . . . 1 . . 1 . 1 . . . . . . . . . . . . . . . 1 1 . . . . . 1 . 3 1 . Maintenance Status 1 | . 1 . . . . . . . . . . . . . . . . . . . . . . . . . . . . . . . . . . . . Recall Investigation 1 | . . . . . . . . . . . . . . . . . . . . . . . . . . . . . . . . . . . 1 . . Registered Components 1 | . . . . . 1 . . . . . . . . . . . . . . . . . . . . . . . . . . . . . . . . Zone Layout 1 | . . . . . 1 . . . . . . . . . . . . . . . . . . . . . . . . . . . . . . . . Garrison Registry 1 | . . . . . . . . . . . . . . . . . . . . . . . 1 . . . . . . . . . . . . . . Proto ID Catalog 2 | . . 1 . . . . . . . . . . . . . . . . . . . . . . . . . . . . . . . . . 1 . Release Object 2 | . . . . . . . 2 . . . . . . . . . . . . . . . . . . . . . . . . . . . . . . Fabricator Hacks 6 | . . . . . . . . . . 1 . . . . . 1 . . . . . . . . . . 1 . . . 2 . 1 . . . . Network Status 2 | . . . . . . . . . . 1 . . . . . . . . . . . . . . . . 1 . . . . . . . . . . Load Schematic 1 | . . . . . . . . . . . . . . . . . . . . . . . . . . . . . . . 1 . . . . . . Build 3 | . . . . . . . . . . . . . . . . 1 . . . . . . . . . . . . . . 1 . 1 . . . . Repair Station Hacks 1 | . . . . . . . . . . . . . . . . . . 1 . . . . . . . . . . . . . . . . . . . Scan Component 1 | . . . . . . . . . . . . . . . . . . 1 . . . . . . . . . . . . . . . . . . . Recycling Unit Hacks 11 | . . . 1 . 1 1 1 1 . . . . . . . 3 . . . . . . . . . 3 . . . . . . . . . . . Retrieve Components 11 | . . . 1 . 1 1 1 1 . . . . . . . 3 . . . . . . . . . 3 . . . . . . . . . . . Scanalyzer 28 | . . . 3 . 10 . . 5 . 1 . . . . . 1 . . . . . . . 3 . 1 . . 1 . . . . . 2 1 . Insert Component 2 | . . . . . . . . 1 . . . . . . . . . . . . . . . . . . . . . . . . . . 1 . . Retrieve Study 26 | . . . 3 . 10 . . 4 . 1 . . . . . 1 . . . . . . . 3 . 1 . . 1 . . . . . 1 1 . Garrison Access Hacks 19 | . . . 1 . 1 . . 4 . 1 . . . . . 2 . . . . . 1 . . . 3 . . 2 . . . 2 . 1 1 . Unlock Access 5 | . . . 1 . . . . . . . . . . . . . . . . . . 1 . . . . . . 2 . . . 1 . . . . Seal Access 14 | . . . . . 1 . . 4 . 1 . . . . . 2 . . . . . . . . . 3 . . . . . . 1 . 1 1 . Unauthorized Hacks 45 | . 10 . 5 . 5 . 11 2 . 1 . . . . . 2 . 2 4 . . 2 . . . . 1 . . . . . . . . . . Terminals 32 | . 9 . 4 . 3 . 5 1 . 1 . . . . . . . 2 4 . . 2 . . . . 1 . . . . . . . . . . Track 1 | . . . . . . . . . . . . . . . . . . . . . . . . . . . 1 . . . . . . . . . . Botnet 10 | . 2 . 1 . 1 . 2 . . 1 . . . . . . . 1 1 . . 1 . . . . . . . . . . . . . . . Operators 1 | . 1 . . . . . . . . . . . . . . . . . . . . . . . . . . . . . . . . . . . . Skim 20 | . 6 . 3 . 2 . 3 1 . . . . . . . . . 1 3 . . 1 . . . . . . . . . . . . . . . Fabricators 1 | . . . . . . . . . . . . . . . . 1 . . . . . . . . . . . . . . . . . . . . . Liberate 1 | . . . . . . . . . . . . . . . . 1 . . . . . . . . . . . . . . . . . . . . . Repair Stations . | . . . . . . . . . . . . . . . . . . . . . . . . . . . . . . . . . . . . . . Recycling Units 11 | . 1 . 1 . 1 . 6 1 . . . . . . . 1 . . . . . . . . . . . . . . . . . . . . . Reject 2 | . . . . . . . 2 . . . . . . . . . . . . . . . . . . . . . . . . . . . . . . Mask 1 | . . . . . . . 1 . . . . . . . . . . . . . . . . . . . . . . . . . . . . . . Tunnel 8 | . 1 . 1 . 1 . 3 1 . . . . . . . 1 . . . . . . . . . . . . . . . . . . . . . Scanalyzers . | . . . . . . . . . . . . . . . . . . . . . . . . . . . . . . . . . . . . . . Garrison Access 1 | . . . . . 1 . . . . . . . . . . . . . . . . . . . . . . . . . . . . . . . . Restock 1 | . . . . . 1 . . . . . . . . . . . . . . . . . . . . . . . . . . . . . . . . Data Cores Recovered 6 | . . . 1 . 1 . . 1 . . . . . . . . . . . . . . . . . 1 1 . . . . . . . . . 1 Used 1 | . . . . . . . . . . . . . . . . . . . . . . . . . . 1 . . . . . . . . . . . Hacking Detections 78 | . 4 . 4 3 6 2 5 8 . 4 . . . . 1 4 . 3 4 . . 1 4 2 . 4 4 . . . 3 1 2 . 8 1 . Full Trace Events 10 | . . . . 1 . . 1 2 . 1 . . . . . 1 . . 1 . . . 1 . . . . . . . 1 . . . 1 . . Feedback Events 1 | . . . . 1 . . . . . . . . . . . . . . . . . . . . . . . . . . . . . . . . . Corruption 1 | . . . . 1 . . . . . . . . . . . . . . . . . . . . . . . . . . . . . . . . . Feedback Blocked . | . . . . . . . . . . . . . . . . . . . . . . . . . . . . . . . . . . . . . . Robot Schematics Acquired 6 | . . . . . . . . . . . . . . . . . . . . . . . . . . . . . . . . . . . 1 5 . Robots Built 5 | . . . . . . . . . . . . . . . . 4 . . . . . . . . . . . . . . . . 1 . . . . Authchips . | . . . . . . . . . . . . . . . . . . . . . . . . . . . . . . . . . . . . . . Time 268 | . . . . . . . . . . . . . . . . 81 . . . . . . . . . . . . . . . . 187 . . . . Total Robot Build Rating 11 | . . . . . . . . . . . . . . . . 4 . . . . . . . . . . . . . . . . 7 . . . . Part Schematics Acquired 22 | . . . . . . . . . . . . . . . . . . 1 . . . . . . . . . . . . 1 . . . 5 15 . Parts Built 2 | . . . . . . . . . . . . . . . . . . . . . . . . . . . . . . . 2 . . . . . . Authchips . | . . . . . . . . . . . . . . . . . . . . . . . . . . . . . . . . . . . . . . Time 24 | . . . . . . . . . . . . . . . . . . . . . . . . . . . . . . . 24 . . . . . . Total Part Build Rating 6 | . . . . . . . . . . . . . . . . . . . . . . . . . . . . . . . 6 . . . . . . Part Studies Acquired 26 | . . . 3 . 10 . . 4 . 1 . . . . . 1 . . . . . . . 3 . 1 . . 1 . . . . . 1 1 . Parts Repaired . | . . . . . . . . . . . . . . . . . . . . . . . . . . . . . . . . . . . . . . Time . | . . . . . . . . . . . . . . . . . . . . . . . . . . . . . . . . . . . . . . Parts Recycled . | . . . . . . . . . . . . . . . . . . . . . . . . . . . . . . . . . . . . . . Recycled Matter . | . . . . . . . . . . . . . . . . . . . . . . . . . . . . . . . . . . . . . . Retrieved Matter . | . . . . . . . . . . . . . . . . . . . . . . . . . . . . . . . . . . . . . . Retrieved Components 50 | . . . 10 . 9 2 6 2 . . . . . . . . . . . . . . . . . 21 . . . . . . . . . . . Parts Scanalyzed . | . . . . . . . . . . . . . . . . . . . . . . . . . . . . . . . . . . . . . . Part Schematics Acquired . | . . . . . . . . . . . . . . . . . . . . . . . . . . . . . . . . . . . . . . Parts Damaged . | . . . . . . . . . . . . . . . . . . . . . . . . . . . . . . . . . . . . . . Bothacking | -11 -10 -10 -8 -8 -8 -8 -8 -6 -6 -6 -6 -6 -6 -6 -5 -5 -5 -5 -5 -5 -5 -5 -5 -4 -4 -4 -4 -4 -3 -3 -3 -3 -2 -2 -2 -2 -1 ------------ Run | Yrd Mat Sub Mat Gar Mat Sto Rec Fac Was Fac Low Low Zio Dee Pro Fac Was Fac Ext Cet Arc Hub Gar Fac Was Fac Arm Lab Res Gar Res Tes Res Gar Qua Frg Acc Used RIF Installer 3 | . . . . 1 . . . . . . . . . . . . . . . . . . 1 . . . . . . . . . . 1 . . . Threat Obfuscator 1 | . . . . . . . . . . . . . . . . . . . . . . . 1 . . . . . . . . . . . . . . Autoassimilate 2 | . . . . . 1 . . . . . . . . . . . . . . . . . . . . . . . . . . . . 1 . . . Robots Hacked 1 | . . . . . . . . . . . . . . . . . . . . . . . . . . . . . . . . . . . 1 . . Non-combat 1 | . . . . . . . . . . . . . . . . . . . . . . . . . . . . . . . . . . . 1 . . Combat . | . . . . . . . . . . . . . . . . . . . . . . . . . . . . . . . . . . . . . . Robot Hacks Applied 3 | . . . . . . . . . . . . . . . . . . . . . . . . . . . . . . . . . . . 3 . . purge_threat 2 | . . . . . . . . . . . . . . . . . . . . . . . . . . . . . . . . . . . 2 . . block_reporting 1 | . . . . . . . . . . . . . . . . . . . . . . . . . . . . . . . . . . . 1 . . Relay Couplers Released 19 | . . . . 7 2 . . . . 2 . . . . . 2 . . . . . . . . . 1 . . . . 2 . 3 . . . . Machine Destruction 16 | . . . . 7 2 . . . . 2 . . . . . 2 . . . . . . . . . 1 . . . . 2 . . . . . . Programmers 3 | . . . . . . . . . . . . . . . . . . . . . . . . . . . . . . . . . 3 . . . . Attached 1 | . . . . . . . . . . . . . . . . . . . . . . . . . . . . . . . . . . . 1 . . Fabnet Peak Effective % . | . . . . . . . . . . . . . . . . . . . . . . . . . . . . . . . . . . . . . . Robots Rewired 28 | . 1 . . . . . 11 . . . . 2 . . . . . . 13 . . . . . . . 1 . . . . . . . . . . Allies Hacked 5 | . . . . . . . . . . . . . . . . . . . . . . . . . . . . . . . . . . . 3 2 . Hacks Repelled . | . . . . . . . . . . . . . . . . . . . . . . . . . . . . . . . . . . . . . . Allies | -11 -10 -10 -8 -8 -8 -8 -8 -6 -6 -6 -6 -6 -6 -6 -5 -5 -5 -5 -5 -5 -5 -5 -5 -4 -4 -4 -4 -4 -3 -3 -3 -3 -2 -2 -2 -2 -1 -------- Run | Yrd Mat Sub Mat Gar Mat Sto Rec Fac Was Fac Low Low Zio Dee Pro Fac Was Fac Ext Cet Arc Hub Gar Fac Was Fac Arm Lab Res Gar Res Tes Res Gar Qua Frg Acc Total Allies 89 | . 2 . . . . . 11 4 . 3 . 2 . . . 4 . . 17 . . . 2 . 1 . 4 . 3 3 . 1 1 2 9 18 2 Largest Group 15 | . 1 1 . . . . 11 11 . 3 . 2 2 . . 4 . . 15 . . . 2 . 1 1 3 . 2 2 1 1 1 2 3 5 2 Highest-Rated Group 570 | . 29 29 . . . . 196 196 . 87 . 50 50 . . 24 . . 570 . . . 190 . 61 55 87 . 119 124 62 183 45 157 351 345 248 Highest-Rated Ally 183 | . 29 29 . . . . 34 34 . 29 . 30 30 . . 6 . . 159 . . . 95 . 61 55 47 . 119 82 62 183 45 95 160 89 124 Total Orders 1 | . . . . . . . . . . . . . . . . . . . . . . . . . . . . . . . . . . . . 1 . STAY 1 | . . . . . . . . . . . . . . . . . . . . . . . . . . . . . . . . . . . . 1 . Ally Attacks 591 | . 7 2 . . . . . 88 . 9 . . 1 . . . . . 200 . . . 22 . 14 1 8 . 31 15 . 1 . 2 33 145 12 Total Damage 20141 | . 38 20 . . . . . 2670 . 133 . . 30 . . . . . 4072 . . . 1078 . 494 50 173 . 1219 270 . 91 . 83 3357 6033 330 Kills 89 | . 2 1 . . . . . 22 . . . . . . . . . . 27 . . . 6 . . 1 . . 3 2 . . . . 5 20 . Allies Corrupted 6 | . . . . . . . . . . . . . . . . . . . 2 . . . . . . . . . . . . . . . 1 3 . Allies Melted . | . . . . . . . . . . . . . . . . . . . . . . . . . . . . . . . . . . . . . . X0-1V1 Amusement Gains 795 | . 2 . 15 . 5 . 40 10 . 70 . . 50 20 . . . 10 80 . . . 40 20 . 10 66 35 46 7 . 73 20 5 44 80 47 Average Entertainment 56 | . . 12 15 23 23 6 14 9 7 60 74 35 67 . 21 11 11 15 20 66 30 18 43 58 78 82 83 . 85 99 96 74 49 70 88 95 91 Good Acts 455 | . 14 17 10 1 10 4 12 45 10 12 6 6 5 . 2 7 6 13 6 3 7 2 4 5 3 13 15 . 18 13 25 15 . 11 44 70 21 Bad Acts 299 | . 3 23 5 13 11 2 11 40 2 11 5 10 8 . 9 21 1 4 4 . 1 7 2 2 2 9 15 . 7 2 12 9 2 5 9 26 6 Intel | -11 -10 -10 -8 -8 -8 -8 -8 -6 -6 -6 -6 -6 -6 -6 -5 -5 -5 -5 -5 -5 -5 -5 -5 -4 -4 -4 -4 -4 -3 -3 -3 -3 -2 -2 -2 -2 -1 ------- Run | Yrd Mat Sub Mat Gar Mat Sto Rec Fac Was Fac Low Low Zio Dee Pro Fac Was Fac Ext Cet Arc Hub Gar Fac Was Fac Arm Lab Res Gar Res Tes Res Gar Qua Frg Acc Active Infowar (turns) 34911 | . . 94 10 . . . . 1 . . . 301 1 . . 1247 191 1145 967 530 716 283 704 518 166 1696 2621 500 3095 1567 4202 1471 698 1424 4763 4176 1824 Optics 28765 | . . 94 10 . . . . . . . . . . . . 8 173 1145 967 530 716 283 704 518 166 1683 2621 500 3095 1567 4202 1471 698 1411 2712 1667 1824 Sensors 17163 | . . . . . . . . . . . . 301 . . . 1246 191 561 965 431 716 283 2 474 166 1510 902 . . . 3466 339 77 7 4578 948 . IFF 1270 | . . . . . . . . . . . . . . . . . . . . . . . . . . . . . . . . 987 283 . . . . Terrain 36 | . . . . . . . . . . . . . . . . . . . . . . . . . . 36 . . . . . . . . . . . Traps 1 | . . . . . . . . . . . . . 1 . . . . . . . . . . . . . . . . . . . . . . . . Seismic 2 | . . . . . . . . . . . . . . . . 1 . . . . . . . . . . 1 . . . . . . . . . . T.N.C. 3 | . . . . . . . . . . . . . . . . . . . . . . . . . . . . . . . 3 . . . . . . Cloaking 6631 | . . . . . . . . 1 . . . . . . . . . . . . . . . . . . . . . . . . 496 189 746 3375 1824 Jamming 1568 | . . . . . . . . . . . . . . . . 2 . . . . . . . . . . . . . . . . . . . 1566 . ECM 1 | . . . . . . . . . . . . . . . . . . . . . . . . . . . . . . . . . . . . 1 . Robot Analysis Total . | . . . . . . . . . . . . . . . . . . . . . . . . . . . . . . . . . . . . . . Derelict Logs Recovered 4 | . . . . . . . . . . . 2 1 . . 1 . . . . . . . . . . . . . . . . . . . . . . Drone Launches . | . . . . . . . . . . . . . . . . . . . . . . . . . . . . . . . . . . . . . . Drone Recoveries . | . . . . . . . . . . . . . . . . . . . . . . . . . . . . . . . . . . . . . . Exploration | -11 -10 -10 -8 -8 -8 -8 -8 -6 -6 -6 -6 -6 -6 -6 -5 -5 -5 -5 -5 -5 -5 -5 -5 -4 -4 -4 -4 -4 -3 -3 -3 -3 -2 -2 -2 -2 -1 ------------- Run | Yrd Mat Sub Mat Gar Mat Sto Rec Fac Was Fac Low Low Zio Dee Pro Fac Was Fac Ext Cet Arc Hub Gar Fac Was Fac Arm Lab Res Gar Res Tes Res Gar Qua Frg Acc Turns Passed 58865 | 80 1131 1994 1604 1696 2566 958 4114 1808 32 1437 866 1404 1199 371 413 1492 191 1145 967 530 716 283 704 518 166 1696 2621 500 3095 1567 4202 1471 698 1424 5359 6023 1824 Spaces Moved 35122 | 48 577 1107 867 985 1037 139 1619 2080 59 1540 696 1132 714 550 840 2072 207 854 681 206 79 205 694 731 208 1473 1519 173 1288 752 1733 466 271 346 3287 2984 903 Core 10 | 10 . . . . . . . . . . . . . . . . . . . . . . . . . . . . . . . . . . . . . Treads 11902 | 38 577 950 . . 671 139 1129 44 . 1256 13 122 15 . . . . 4 . . . . . 252 . 4 849 173 1269 752 1733 420 138 . 1273 70 11 Legs 11739 | . . . 815 985 366 . . 231 . . . . . . . 338 207 173 . . 25 . . 388 208 1469 663 . 19 . . 24 93 346 1690 2892 807 Wheels 1063 | . . 157 52 . . . . 9 . 162 683 . . . . . . . . . . . . . . . . . . . . . . . . . . Hover 4294 | . . . . . . . 490 1630 59 122 . 1010 626 . . . . . . . . . . . . . 7 . . . . 9 40 . 279 22 . Flight 6114 | . . . . . . . . 166 . . . . 73 550 840 1734 . 677 681 206 54 205 694 91 . . . . . . . 13 . . 45 . 85 Fastest Speed 36 | 50 160 110 90 90 90 210 144 49 49 49 59 59 36 36 36 36 36 36 79 79 46 46 46 46 46 46 47 119 119 169 162 162 197 201 50 71 96 Average Speed 110 | 137 160 158 136 135 170 212 194 73 49 68 84 92 90 36 36 38 36 70 79 102 81 46 46 46 46 46 97 123 205 169 163 186 210 201 119 111 127 Slowest Speed 491 | 160 160 240 200 173 320 214 225 224 49 85 85 96 96 36 36 100 36 79 79 143 143 46 46 46 46 55 289 257 257 169 179 491 311 205 205 222 327 Overloaded Moves . | . . . . . . . . . . . . . . . . . . . . . . . . . . . . . . . . . . . . . . Propulsion Burnouts . | . . . . . . . . . . . . . . . . . . . . . . . . . . . . . . . . . . . . . . Robots Hopped 32 | . . . . . . . . . . . . . . . . 8 . 5 18 . . 1 . . . . . . . . . . . . . . . Potential Cave-ins 33 | . . . . . . . . . . . . . . . . . . . . . . . . . . . . . . . . . . . . 26 7 Cave-ins Triggered 1 | . . . . . . . . . . . . . . . . . . . . . . . . . . . 1 . . . . . . . . . . Teleports 2 | . . . . . . . . . . . . . . . . . . . . . . . . . . . . . . . . . . . 1 1 . Exploration Rate (%) 61 | 4 70 60 72 93 84 30 97 62 60 48 88 96 63 65 86 44 94 19 66 60 85 11 84 23 98 48 66 94 48 79 48 48 8 52 97 71 27 Regions Visited 37 Branch Regions 17 Pre-discovered Areas 8 | . 1 . 1 . 1 . 3 1 . . . . . . . 1 . . . . . . . . . . . . . . . . . . . . . Known Exits Taken 21 | . . 1 1 . 1 1 1 . . 1 . . . . 1 . . 1 1 1 1 1 . . . 1 1 1 1 . 1 1 1 . 1 1 . Unknown Exits Taken 6 | 1 1 . . . . . . . . . 1 1 1 1 . . . . . . . . . . . . . . . . . . . . . . . Scrap Searched 13 | . . 6 . . . . . . . . 2 3 2 . . . . . . . . . . . . . . . . . . . . . . . . Spaces Dug 294 | . . . 3 . . . . 12 . 8 . 13 . 4 7 27 . 27 . 1 . 7 2 9 . 20 15 . 1 5 31 21 11 1 19 33 17 Terrain Destroyed 2163 | . 21 5 18 . 71 . 39 108 . 47 11 46 17 258 16 63 1 98 7 8 2 11 109 20 3 112 78 12 45 17 57 64 11 7 199 411 171 Melee 4 | . . . . . . . . . . . . . . . . . . . . . . . . . . . . . . . . . . . 4 . . Projectile 1164 | . . 5 12 . 9 . . 53 . 47 . 40 11 14 16 63 1 58 2 8 2 11 25 20 3 45 53 12 6 17 53 31 11 7 34 367 128 AOE 995 | . 21 . 6 . 62 . 39 55 . . 11 6 6 244 . . . 40 5 . . . 84 . . 67 25 . 39 . 4 33 . . 161 44 43 Terrain Rammed . | . . . . . . . . . . . . . . . . . . . . . . . . . . . . . . . . . . . . . . Walls Destroyed . | . . . . . . . . . . . . . . . . . . . . . . . . . . . . . . . . . . . . . . Machines Disabled . | . . . . . . . . . . . . . . . . . . . . . . . . . . . . . . . . . . . . . . Actions | -11 -10 -10 -8 -8 -8 -8 -8 -6 -6 -6 -6 -6 -6 -6 -5 -5 -5 -5 -5 -5 -5 -5 -5 -4 -4 -4 -4 -4 -3 -3 -3 -3 -2 -2 -2 -2 -1 --------- Run | Yrd Mat Sub Mat Gar Mat Sto Rec Fac Was Fac Low Low Zio Dee Pro Fac Was Fac Ext Cet Arc Hub Gar Fac Was Fac Arm Lab Res Gar Res Tes Res Gar Qua Frg Acc Total 51456 | 60 755 1252 1138 1173 1557 764 2513 2301 64 1855 959 1442 1112 659 917 2632 288 1317 998 495 727 381 1004 875 250 2317 2431 427 1639 963 2835 938 352 1009 4529 5146 1382 Wait 9969 | . 105 55 98 39 269 605 710 82 . 184 230 218 226 29 35 298 46 322 99 231 625 152 205 69 11 567 577 185 112 57 688 173 16 568 778 1128 177 Move 35034 | 47 576 1106 866 984 1036 138 1618 2080 58 1539 695 1131 713 549 839 2057 206 843 651 205 78 202 693 731 207 1472 1518 172 1288 751 1732 466 271 344 3286 2983 903 Hop 25 | . . . . . . . . . . . . . . . . 7 . 5 12 . . 1 . . . . . . . . . . . . . . . Pick Up 463 | 7 15 6 24 13 29 . 18 20 2 15 2 4 4 4 3 29 1 21 2 10 1 . 6 10 3 25 20 9 22 2 11 4 5 2 59 48 7 Fast Attach 252 | 5 6 8 6 7 21 1 2 10 . 4 2 7 3 3 3 18 . 5 1 1 1 . 3 2 . 6 15 7 8 1 8 13 4 . 30 36 5 Attach 198 | 1 1 4 6 9 13 1 2 4 . 3 1 1 2 4 . 12 . 6 1 7 2 . 2 1 . 2 12 3 6 1 1 11 1 4 27 29 18 Detach 72 | . . . . . 2 . 3 . . 1 1 . 1 . . 6 . 3 . 5 2 . . . . 1 2 2 1 . . 5 1 3 13 9 11 Swap 324 | . 4 9 22 3 22 3 2 13 . 4 . 6 1 1 1 14 1 11 3 5 3 3 5 3 4 21 19 7 16 2 23 9 5 2 35 40 2 Drop 611 | . 19 6 22 8 31 1 27 33 4 22 8 9 8 6 4 43 . 21 4 9 9 1 8 12 . 30 28 10 28 5 15 9 4 3 95 58 11 Fire 3912 | . 18 58 93 85 129 13 36 59 . 78 20 52 154 59 32 144 34 80 72 22 6 10 74 41 25 176 225 32 157 143 351 245 45 68 110 732 234 Melee 122 | . . . . . . . . . . . . . . . . . . . . . . . . . . . . . . . . . . . 83 39 . Ram 1 | . . . . . . . . . . . . . . . . . . . 1 . . . . . . . . . . . . . . . . . . Kick 48 | . . . 1 . 2 . . . . . . . . . . 4 . . . . . . . . . 12 . . . . . . . . 11 17 1 Crush 19 | . 5 . . . 3 . . . . 5 . . . . . . . . . . . . . 1 . . 1 . 1 1 1 1 . . . . . Escape Stasis 98 | . . . . 25 . 2 . . . . . . . . . . . . . . . . 8 . . 1 . . . . 5 2 . 15 . 27 13 Rewire 287 | . 6 . . . . . 95 . . . . 14 . 4 . . . . 152 . . . . . . . 14 . . . . . . . 2 . . Trap 9 | . . . . . . . . . . . . . . . . . . . . . . . . 5 . 4 . . . . . . . . . . . Miscellaneous 12 | . . . . . . . . . . . . . . . . . . . . . . 12 . . . . . . . . . . . . . . . Route ------- -11/Scrapyard -10/Materials (discovered 6 exits: *Mat x3 / *Min x2 / *Sub) -10/Subcaves (discovered 4 exits: *Mat / Rec / [*Scr x2]) -8/Materials (discovered 6 exits: *Fac x3 / *Sto x2 / Gar) -8/Garrison (discovered 4 exits: *Mat x4) -8/Materials (discovered 3 exits: *Fac x2 / *Sto) -8/Storage (discovered 2 exits: Fac / *Rec) -8/Recycling -6/Factory (discovered 5 exits: *Fac x3 / *Low x2) -6/Waste -6/Factory (discovered 3 exits: *Fac / *Low x2) -6/Lower Caves -6/Lower Caves (discovered 2 exits: *Fac / [*Zio]) -6/Zion (discovered 2 exits: [*Dee] / [*Pro]) -6/Deep Caves -5/Proximity Caves -5/Factory (discovered 2 exits: *Fac x2) -5/Waste -5/Factory (discovered 3 exits: *Fac / *Upp / *Ext) -5/Extension (discovered 2 exits: *Fac / *Cet) -5/Cetus (discovered 2 exits: *Fac / *Arc) -5/Archives (discovered 3 exits: *Fac / *Hub x2) -5/Hub_04(d) -5/Garrison (discovered 3 exits: *Fac x3) -4/Factory -4/Waste -4/Factory (discovered 6 exits: *Res x3 / *Upp x2 / *Arm) -4/Armory (discovered 3 exits: *Res x2 / *Lab) -4/Lab -3/Research (discovered 6 exits: *Res x2 / *Tes x2 / Gar / Gar) -3/Garrison (discovered 3 exits: *Res x3) -3/Research (discovered 5 exits: *Res x3 / *Tes x2) -3/Testing -2/Research -2/Garrison (discovered 3 exits: *Qua x3) -2/Quarantine (discovered 3 exits: *Acc / *Sec / *Frg) -2/Protoforge -1/Access History --------- Turn | Location | Event 4 | -11/Scrapyard | Discovered new exit (range 15) 81 | -11/Scrapyard | Entered Materials 82 | -10/Materials | Met a group of wandering Federalists 208 | -10/Materials | Discovered new exit (range 6) 210 | -10/Materials | Discovered new exit (range 11) 308 | -10/Materials | Build established: Mutant 364 | -10/Materials | Discovered new exit (range 10) 557 | -10/Materials | Discovered new exit (range 15) 707 | -10/Materials | Discovered new exit (range 9) 933 | -10/Materials | Identified exit to Materials 933 | -10/Materials | Identified exit to Mines 979 | -10/Materials | Learned location of 2 exits from Materials 996 | -10/Materials | Prayed at D.C.S.S. Altar Unit 1074 | -10/Materials | X0-1V1 added 0b10 threat records associated with you (minor) 1079 | -10/Materials | Melee accuracy permanently improved by X0-1V1 (+5%; -50 max core) 1080 | -10/Materials | Learned 2 Mines zone layouts 1081 | -10/Materials | X0-1V1 activates XOMVISION 1089 | -10/Materials | X0-1V1 upgraded ally (x1) 1112 | -10/Materials | X0-1V1 foreshadows a heat wave 1124 | -10/Materials | Learned 8 Materials zone layouts 1145 | -10/Materials | X0-1V1 put everyone to sleep 1212 | -10/Materials | Entered Subcaves 1212 | -10/Subcaves | Accompanied by 1 ally 1213 | -10/Subcaves | Continued accompanying wandering Federalists (4) 1213 | -10/Subcaves | Approached by a straggling Scientist 1213 | -10/Subcaves | Identified exit to Recycling 1222 | -10/Subcaves | Core integrity permanently improved by X0-1V1 (+350) 1232 | -10/Subcaves | Identified exit to Materials 1232 | -10/Subcaves | X0-1V1 revealed exit location to -8/Materials 1254 | -10/Subcaves | X0-1V1 activates XOMVISION 1257 | -10/Subcaves | X0-1V1 caused items to flee you 1260 | -10/Subcaves | System corruption reached 10% 1312 | -10/Subcaves | X0-1V1 revealed exit location to -8/Materials 1412 | -10/Subcaves | X0-1V1 tapped a No Entrance sign 1418 | -10/Subcaves | A swath of the cavern ceiling suddenly collapsed 1528 | -10/Subcaves | X0-1V1 rewrote Soldier 1a IFF filter 1549 | -10/Subcaves | X0-1V1 sent hostile G-34 Mercenary (x3) 1572 | -10/Subcaves | Items stopped fleeing you 1763 | -10/Subcaves | X0-1V1 activates XOMVISION 1803 | -10/Subcaves | Visited 4L-MR0's lab 1831 | -10/Subcaves | Found Powered Cannon 2133 | -10/Subcaves | X0-1V1 sent hostile G-34 Mercenary (x3) 2323 | -10/Subcaves | X0-1V1 sent hostile S-10 Pest (x4) 2380 | -10/Subcaves | Shifting Twisted Machinery released Battle Rifle 2394 | -10/Subcaves | X0-1V1 activates XOMVISION 2569 | -10/Subcaves | Visited Clippyterm 2573 | -10/Subcaves | Learned Factory trap positions 2944 | -10/Subcaves | Lost 3 parts (1n1u1w) 3048 | -10/Subcaves | X0-1V1 sent you into danger 3067 | -10/Subcaves | Core integrity fell below 50% 3108 | -10/Subcaves | Lost 3 parts (1p1n1u) 3206 | -10/Subcaves | Entered Materials 3206 | -8/Materials | Evolved 4 slots: Propulsion x1, Utility x2, Weapon x1 3207 | -8/Materials | Identified exit to Storage 3207 | -8/Materials | Identified exit to Factory 3451 | -8/Materials | X0-1V1 caused items to flee you 3593 | -8/Materials | Items stopped fleeing you 3626 | -8/Materials | Met 7R-MNS 3673 | -8/Materials | X0-1V1 activates XOMVISION 3950 | -8/Materials | Energy capacity permanently improved by X0-1V1 (+500; -250 max core) 4010 | -8/Materials | Build established: Gunner 4067 | -8/Materials | Discovered exit to Factory (range 16) 4101 | -8/Materials | Central database locked down 4118 | -8/Materials | Forcibly received Sfc. Transmogifier from X0-1V1 4155 | -8/Materials | X0-1V1 activates XOMVISION 4283 | -8/Materials | X0-1V1 announced a LAN party 4660 | -8/Materials | Destroyed 8 combat bots 4767 | -8/Materials | X0-1V1 made a cryptic comment about sterilization and BL-4Z3 4798 | -8/Materials | Identified exit to Garrison 4810 | -8/Materials | Entered Garrison 4860 | -8/Garrison | Triggered checkpoint 4885 | -8/Garrison | Discovered new exit (range 6) 4916 | -8/Garrison | Triggered checkpoint 4958 | -8/Garrison | Triggered checkpoint 5166 | -8/Garrison | Triggered checkpoint 5248 | -8/Garrison | Identified exit to Materials 5248 | -8/Garrison | X0-1V1 revealed exit location to -8/Materials 5285 | -8/Garrison | Lost 4 parts (1p1n2w) 5313 | -8/Garrison | Installed Relay Interface Framework 5369 | -8/Garrison | System corruption reached 10% 5415 | -8/Garrison | X0-1V1 caused items to flee you 5578 | -8/Garrison | Items stopped fleeing you 5586 | -8/Garrison | X0-1V1 vaporized surrounding terrain (radius 18) 5610 | -8/Garrison | Triggered checkpoint 5634 | -8/Garrison | Discovered exit to Materials (range 15) 5641 | -8/Garrison | Lost 3 parts (1p2n) 5764 | -8/Garrison | Garrison Relay disabled 5766 | -8/Garrison | Garrison Relay disabled 5888 | -8/Garrison | Triggered checkpoint 5904 | -8/Garrison | Triggered checkpoint 5984 | -8/Garrison | X0-1V1 sent you into danger 5984 | -8/Garrison | Triggered checkpoint 6204 | -8/Garrison | Discovered exit to Materials (range 12) 6506 | -8/Garrison | Entered Materials 6715 | -8/Materials | System corruption reached 30% 6872 | -8/Materials | X0-1V1 sent hostile B-36 Bruiser (x3) 6930 | -8/Materials | Core integrity fell below 50% 6954 | -8/Materials | X0-1V1 caused items to flee you 7127 | -8/Materials | Lost 5 parts (2p2n1w) 7143 | -8/Materials | Items stopped fleeing you 7247 | -8/Materials | X0-1V1 sent hostile Y-45 Defender (x1) 7672 | -8/Materials | Discovered exit to Factory (range 5) 7843 | -8/Materials | Core integrity fell below 20% 8151 | -8/Materials | Build established: Scavenger-Gunner 8164 | -8/Materials | X0-1V1 sent you into danger 8388 | -8/Materials | Discovered exit to Factory (range 11) 8733 | -8/Materials | Build established: Scavenger-Tank 8750 | -8/Materials | Expanded RIF knowledge: Autoassimilate 9033 | -8/Materials | Discovered exit to Storage (range 12) 9069 | -8/Materials | X0-1V1 sent hostile S-10 Pest (x3) 9072 | -8/Materials | Entered Storage 9915 | -8/Storage | X0-1V1 revealed exit location to -7/Factory 9966 | -8/Storage | Used back door to open Recycling access 9966 | -8/Storage | Discovered exit to Recycling (range 5) 10023 | -8/Storage | Build established: Tank 10030 | -8/Storage | Entered Recycling 10186 | -8/Recycling | X0-1V1 sent hostile S-10 Pest (x3) 10372 | -8/Recycling | X0-1V1 put everyone to sleep 10497 | -8/Recycling | Core integrity restored by X0-1V1 (+114) 11047 | -8/Recycling | Identified exit to Factory 11047 | -8/Recycling | X0-1V1 revealed exit location to -6/Factory 11992 | -8/Recycling | Entered Scraplab 12000 | -8/Recycling | Found Prototype Device 12000 | -8/Recycling | Identified Scrap Engine 12051 | -8/Recycling | Core integrity restored by X0-1V1 (+114) 12276 | -8/Recycling | Build established: Mutant 13047 | -8/Recycling | Build established: Construct 13235 | -8/Recycling | Core integrity restored by X0-1V1 (+126) 13652 | -8/Recycling | X0-1V1 activates XOMVISION 14144 | -8/Recycling | Entered Factory 14144 | -6/Factory | Accompanied by 11 allies 14144 | -6/Factory | Evolved 4 slots: Propulsion x1, Utility x3 14145 | -6/Factory | Loaded intel: 116 trap records 14227 | -6/Factory | Build established: Commander-Construct 14576 | -6/Factory | Garrison activated, responded to threat 14648 | -6/Factory | Discovered new exit (range 4) 14788 | -6/Factory | X0-1V1 put everyone to sleep 14851 | -6/Factory | Discovered new exit (range 9) 15106 | -6/Factory | Discovered new exit (range 11) 15256 | -6/Factory | X0-1V1 woke everyone up 15473 | -6/Factory | Identified exit to Factory 15473 | -6/Factory | X0-1V1 revealed exit location to -5/Factory 15596 | -6/Factory | Discovered exit to Factory (range 13) 15664 | -6/Factory | Build established: Construct 15803 | -6/Factory | X0-1V1 mutated your Utility slot to Weapon slot 15806 | -6/Factory | System corruption reached 10% 15814 | -6/Factory | Identified exit to Lower Caves 15814 | -6/Factory | X0-1V1 revealed exit location to -6/Lower Caves 15816 | -6/Factory | X0-1V1 sent you to a vault 15821 | -6/Factory | X0-1V1 activates XOMVISION 15823 | -6/Factory | X0-1V1 enhanced Transport squad support 15827 | -6/Factory | X0-1V1 added 0b10 threat records associated with you (minor) 15829 | -6/Factory | X0-1V1 announced a LAN party 15834 | -6/Factory | X0-1V1 sent you into danger 15836 | -6/Factory | X0-1V1 caused items to flee you 15857 | -6/Factory | X0-1V1 vaporized surrounding terrain (radius 22) 15863 | -6/Factory | X0-1V1 added 0b10 threat records associated with you (considerable) 15876 | -6/Factory | X0-1V1 tapped a No Entrance sign 15891 | -6/Factory | X0-1V1 added 0b10 threat records associated with you (major) 15903 | -6/Factory | X0-1V1 vaporized surrounding terrain (radius 21) 15938 | -6/Factory | X0-1V1 activates XOMVISION 15952 | -6/Factory | Manually triggered Chute Trap 15952 | -6/Factory | Sucked down chute 15952 | -6/Factory | Entered Waste 15956 | -6/Waste | Identified exit to Factory 15956 | -6/Waste | X0-1V1 revealed exit location to -6/Factory 15963 | -6/Waste | X0-1V1 sent hostile H-55 Commando (x2) 15967 | -6/Waste | EMP discharged 15967 | -6/Waste | Spotted C-40 Crusher 15967 | -6/Waste | X0-1V1 sent you into danger 15968 | -6/Waste | Spotted C-40 Crusher 15972 | -6/Waste | Spotted C-40 Crusher 15972 | -6/Waste | Spotted C-40 Crusher 15972 | -6/Waste | Spotted C-40 Crusher 15984 | -6/Waste | Entered Factory 16038 | -6/Factory | X0-1V1 sent you to a vault 16067 | -6/Factory | X0-1V1 released a cloud of subatomizers 16344 | -6/Factory | Spotted B-75 Beast 16375 | -6/Factory | Destroyed B-75 Beast 16399 | -6/Factory | Found Powered Armor 16502 | -6/Factory | X0-1V1 added 0b10 threat records associated with you (minor) 16763 | -6/Factory | Discovered exit to Factory (range 4) 16793 | -6/Factory | X0-1V1 put everyone to sleep 16882 | -6/Factory | Discovered exit to Factory (range 7) 16906 | -6/Factory | Sterilization system engaged 16906 | -6/Factory | Non-combat units ordered to evacuate 17006 | -6/Factory | Combat units ordered to evacuate 17056 | -6/Factory | X0-1V1 enhanced Transport squad support 17206 | -6/Factory | Ambient heat levels rising (+10) 17270 | -6/Factory | X0-1V1 woke everyone up 17300 | -6/Factory | X0-1V1 tapped a No Entrance sign 17328 | -6/Factory | X0-1V1 sent hostile H-66 Slayer (x3) 17356 | -6/Factory | Ambient heat levels rising (+10) 17421 | -6/Factory | Entered Lower Caves 17574 | -6/Lower Caves | Learned Factory emergency access door positions 17634 | -6/Lower Caves | X0-1V1 vaporized surrounding terrain (radius 20) 17769 | -6/Lower Caves | Spotted B-75 Beast 17775 | -6/Lower Caves | Destroyed B-75 Beast 17806 | -6/Lower Caves | Learned Factory interactive machine intel 17853 | -6/Lower Caves | Acquired the password to a Derelict Tinkerer's latest research 17858 | -6/Lower Caves | Found Prototype Special Weapon 17884 | -6/Lower Caves | Discovered new exit (range 13) 17924 | -6/Lower Caves | Caught by Unaware searching for contraband prototypes 17931 | -6/Lower Caves | Caught by Unaware searching for contraband prototypes 17958 | -6/Lower Caves | X0-1V1 caused items to flee you 17994 | -6/Lower Caves | X0-1V1 activates XOMVISION 18142 | -6/Lower Caves | Items stopped fleeing you 18287 | -6/Lower Caves | Entered another Lower Caves area 18370 | -6/Lower Caves | Learned Armory security intel 18370 | -6/Lower Caves | Learned Factory security intel 18384 | -6/Lower Caves | X0-1V1 revealed exit location to -5/Factory 18408 | -6/Lower Caves | Encountered a Warlord checkpoint 18476 | -6/Lower Caves | Attracted the attention of an 0b10 outpost 18678 | -6/Lower Caves | Learned Factory security intel 18696 | -6/Lower Caves | Discovered new exit (range 10) 18927 | -6/Lower Caves | X0-1V1 caused items to flee you 19055 | -6/Lower Caves | Items stopped fleeing you 19104 | -6/Lower Caves | X0-1V1 vaporized surrounding terrain (radius 15) 19183 | -6/Lower Caves | Found Alien Artifact 19183 | -6/Lower Caves | Identified Core Expander 19183 | -6/Lower Caves | Installed Core Expander, added new Utility slot 19362 | -6/Lower Caves | X0-1V1 activates XOMVISION 19455 | -6/Lower Caves | X0-1V1 vaporized surrounding terrain (radius 16) 19691 | -6/Lower Caves | Entered Zion 19691 | -6/Zion | Accompanied by 2 allies 19732 | -6/Zion | Given A8's code to call for help 19787 | -6/Zion | Discovered new exit (range 10) 19864 | -6/Zion | RIF detected upon attempting to enter Zion 19864 | -6/Zion | Attacked by Zionites 19906 | -6/Zion | Spotted RX-E7T(B) 19915 | -6/Zion | Destroyed RX-E7T(B) 19924 | -6/Zion | Spotted 69-ZOR(B) 20000 | -6/Zion | X0-1V1 activates XOMVISION 20003 | -6/Zion | Destroyed 69-ZOR(B) 20063 | -6/Zion | Destroyed Imprinter 20086 | -6/Zion | Extracted access codes from Imprinter's data core 20596 | -6/Zion | Phase Cannon reconfigured into Item Mimic 20757 | -6/Zion | X0-1V1 sent you into danger 20841 | -6/Zion | Discovered new exit (range 4) 20841 | -6/Zion | Saw the warning signs outside the Deep Caves entrance 20890 | -6/Zion | Entered Deep Caves 20942 | -6/Deep Caves | X0-1V1 poked a wall 20949 | -6/Deep Caves | Z-Facility disabled 21152 | -6/Deep Caves | Destroyed 35 combat bots 21203 | -6/Deep Caves | Discovered new exit (range 6) 21241 | -6/Deep Caves | Spotted Assembler 21261 | -6/Deep Caves | Entered Proximity Caves 21359 | -5/Proximity Caves | Core integrity restored by X0-1V1 (+216) 21362 | -5/Proximity Caves | X0-1V1 sent hostile B-60 Warrior (x2) 21400 | -5/Proximity Caves | Learned Factory terminal intel 21516 | -5/Proximity Caves | X0-1V1 caused items to flee you 21566 | -5/Proximity Caves | Discovered exit to Factory (range 12) 21583 | -5/Proximity Caves | Items stopped fleeing you 21674 | -5/Proximity Caves | X0-1V1 sent hostile H-66 Slayer (x3) 21674 | -5/Proximity Caves | Entered Factory 21674 | -5/Factory | Evolved 2 slots: Power x1, Utility x1 21677 | -5/Factory | Loaded intel: 55 interactive machine locations 21678 | -5/Factory | Loaded intel: 28 terminal locations 21774 | -5/Factory | Fabricated K-01 Serf? 22006 | -5/Factory | Discovered new exit (range 16) 22115 | -5/Factory | X0-1V1 redirected Transport squads to designated parking area 22252 | -5/Factory | Discovered new exit (range 5) 22253 | -5/Factory | Identified exit to Factory 22253 | -5/Factory | X0-1V1 announced a LAN party 22270 | -5/Factory | X0-1V1 added 0b10 threat records associated with you (considerable) 22302 | -5/Factory | Watched by a mysterious "MATRIX" hacker 22343 | -5/Factory | Spotted B-75 Beast 22355 | -5/Factory | Destroyed B-75 Beast 22372 | -5/Factory | X0-1V1 vaporized surrounding terrain (radius 16) 22420 | -5/Factory | Sensors blinded by X0-1V1 22460 | -5/Factory | X0-1V1 enhanced Transport squad support 22609 | -5/Factory | Central database locked down 22655 | -5/Factory | X0-1V1 sent you to a vault 22665 | -5/Factory | Found Prototype Device 22665 | -5/Factory | Identified Exp. EM Disruption Field 22705 | -5/Factory | Found Prototype Device 22705 | -5/Factory | Identified Imp. Particle Accelerator 22734 | -5/Factory | Cargo convoy interrupted 22775 | -5/Factory | X0-1V1 added 0b10 threat records associated with you (major) 22932 | -5/Factory | X0-1V1 upgraded hostiles (x1) 23095 | -5/Factory | X0-1V1 added 0b10 threat records associated with you (minor) 23166 | -5/Factory | Sucked down chute 23166 | -5/Factory | Entered Waste 23167 | -5/Waste | Spotted C-40 Crusher 23177 | -5/Waste | Destroyed C-40 Crusher 23179 | -5/Waste | Weapon slot count temporarily expanded by X0-1V1 (+2) 23181 | -5/Waste | EMP discharged 23181 | -5/Waste | System corruption reached 10% 23181 | -5/Waste | Destroyed C-40 Crusher 23192 | -5/Waste | Spotted C-40 Crusher 23205 | -5/Waste | Destroyed C-40 Crusher 23222 | -5/Waste | Spotted C-40 Crusher 23223 | -5/Waste | Spotted C-40 Crusher 23223 | -5/Waste | Spotted C-40 Crusher 23281 | -5/Waste | EMP discharged 23284 | -5/Waste | Discovered new exit (range 12) 23292 | -5/Waste | Identified exit to Factory 23301 | -5/Waste | X0-1V1 activates XOMVISION 23353 | -5/Waste | Weapon slot count reverted to normal (-2) 23357 | -5/Waste | Entered Factory 23365 | -5/Factory | Discovered new exit (range 4) 23366 | -5/Factory | Identified exit to Upper Caves 23403 | -5/Factory | X0-1V1 sent you to a vault 23447 | -5/Factory | X0-1V1 downgraded hostiles (x1) 23460 | -5/Factory | X0-1V1 activates XOMVISION 23830 | -5/Factory | X0-1V1 activates XOMVISION 23989 | -5/Factory | X0-1V1 announced a LAN party 24177 | -5/Factory | Discovered exit to Factory (range 11) 24280 | -5/Factory | X0-1V1 activates XOMVISION 24332 | -5/Factory | Discovered new exit (range 15) 24501 | -5/Factory | Identified exit to Extension 24502 | -5/Factory | Entered Extension 24636 | -5/Extension | X0-1V1 announced a LAN party 24670 | -5/Extension | Rescued A7 24783 | -5/Extension | Rescued a captive Derelict 24802 | -5/Extension | First assault squad dispatched 24863 | -5/Extension | X0-1V1 added 0b10 threat records associated with you (minor) 24952 | -5/Extension | Build established: Commander-Construct 24960 | -5/Extension | Rescued a captive Derelict 24961 | -5/Extension | Rescued a captive Derelict 24963 | -5/Extension | Lost 3 allies 25150 | -5/Extension | X0-1V1 activates XOMVISION 25240 | -5/Extension | Spotted B-75 Beast 25255 | -5/Extension | Destroyed B-75 Beast 25260 | -5/Extension | Spotted B-75 Beast 25289 | -5/Extension | Destroyed B-75 Beast 25313 | -5/Extension | X0-1V1 put everyone to sleep 25329 | -5/Extension | High security lockdown imminent 25370 | -5/Extension | X0-1V1 downgraded hostiles (x2) 25390 | -5/Extension | Discovered exit to Factory (range 22) 25390 | -5/Extension | Discovered new exit (range 22) 25409 | -5/Extension | High security lockdown engaged 25435 | -5/Extension | Identified exit to Cetus 25439 | -5/Extension | Destroyed A7 25469 | -5/Extension | Entered Cetus 25488 | -5/Cetus | Lost 7 allies 25488 | -5/Cetus | Spotted Cetus Guard 25489 | -5/Cetus | Spotted Cetus Guard 25494 | -5/Cetus | Spotted Cetus Guard 25496 | -5/Cetus | Destroyed Cetus Guard 25497 | -5/Cetus | Spotted Cetus Guard 25498 | -5/Cetus | Lost 4 parts (1n1u2w) 25499 | -5/Cetus | Destroyed Cetus Guard 25506 | -5/Cetus | Destroyed Cetus Guard 25689 | -5/Cetus | Discovered new exit (range 22) 25803 | -5/Cetus | Spotted Cetus Guard 25820 | -5/Cetus | Spotted Cetus Guard 25831 | -5/Cetus | Destroyed Cetus Guard 25835 | -5/Cetus | Spotted Cetus Guard 25837 | -5/Cetus | Destroyed Cetus Guard 25839 | -5/Cetus | Spotted Cetus Guard 25840 | -5/Cetus | Destroyed Cetus Guard 25843 | -5/Cetus | Destroyed Cetus Guard 25846 | -5/Cetus | Discovered exit to Factory (range 22) 25862 | -5/Cetus | Met Revision 17 25888 | -5/Cetus | Core integrity restored by X0-1V1 (+283) 25934 | -5/Cetus | Build established: Construct 25954 | -5/Cetus | Identified exit to Archives 25999 | -5/Cetus | Entered Archives 26077 | -5/Archives | X0-1V1 activates XOMVISION 26141 | -5/Archives | Discovered new exit (range 22) 26150 | -5/Archives | Discovered exit to Factory (range 16) 26162 | -5/Archives | Discovered new exit (range 16) 26435 | -5/Archives | Identified exit to Hub_04(d) 26527 | -5/Archives | X0-1V1 activates XOMVISION 26715 | -5/Archives | Entered Hub_04(d) 26720 | -5/Hub_04(d) | Identified exit to Garrison 26777 | -5/Hub_04(d) | X0-1V1 caused items to flee you 26912 | -5/Hub_04(d) | X0-1V1 destroyed Network Hub 26912 | -5/Hub_04(d) | Network Hub disabled 26915 | -5/Hub_04(d) | X0-1V1 announced a LAN party 26928 | -5/Hub_04(d) | X0-1V1 enhanced Transport squad support 26930 | -5/Hub_04(d) | Items stopped fleeing you 26998 | -5/Hub_04(d) | Entered Garrison 27026 | -5/Garrison | Triggered checkpoint 27044 | -5/Garrison | Expanded RIF knowledge: Threat Obfuscation 27057 | -5/Garrison | Discovered exit to Factory (range 84) 27057 | -5/Garrison | Discovered exit to Factory (range 88) 27057 | -5/Garrison | Discovered exit to Factory (range 24) 27108 | -5/Garrison | Triggered checkpoint 27152 | -5/Garrison | Triggered checkpoint 27199 | -5/Garrison | Triggered checkpoint 27235 | -5/Garrison | Triggered checkpoint 27253 | -5/Garrison | X0-1V1 activates XOMVISION 27260 | -5/Garrison | Triggered checkpoint 27276 | -5/Garrison | Triggered checkpoint 27295 | -5/Garrison | Phase Generator disabled 27316 | -5/Garrison | Found embedded Infiltrators 27361 | -5/Garrison | Triggered checkpoint 27412 | -5/Garrison | Triggered checkpoint 27430 | -5/Garrison | X0-1V1 activates XOMVISION 27439 | -5/Garrison | X0-1V1 caused items to flee you 27564 | -5/Garrison | Items stopped fleeing you 27656 | -5/Garrison | Triggered checkpoint 27702 | -5/Garrison | Entered Factory 27702 | -4/Factory | Evolved 2 slots: Propulsion x1, Utility x1 27703 | -4/Factory | Identified exit to Armory 27752 | -4/Factory | X0-1V1 sent you into danger 27884 | -4/Factory | Sensors blinded by X0-1V1 27971 | -4/Factory | Central database locked down 28220 | -4/Factory | Sucked down chute 28220 | -4/Factory | Entered Waste 28221 | -4/Waste | Met a frightened Derelict 28235 | -4/Waste | EMP discharged 28246 | -4/Waste | X0-1V1 activates XOMVISION 28257 | -4/Waste | Spotted C-40 Crusher 28260 | -4/Waste | Destroyed C-40 Crusher 28262 | -4/Waste | Spotted C-40 Crusher 28275 | -4/Waste | Destroyed C-40 Crusher 28277 | -4/Waste | Destroyed C-40 Crusher 28281 | -4/Waste | Spotted C-40 Crusher 28282 | -4/Waste | Spotted C-40 Crusher 28289 | -4/Waste | Destroyed C-40 Crusher 28291 | -4/Waste | Destroyed C-40 Crusher 28302 | -4/Waste | Spotted C-40 Crusher 28335 | -4/Waste | EMP discharged 28335 | -4/Waste | System corruption reached 10% 28336 | -4/Waste | Destroyed C-40 Crusher 28350 | -4/Waste | Discovered new exit (range 22) 28377 | -4/Waste | Identified exit to Factory 28386 | -4/Waste | Entered Factory 28386 | -4/Factory | Accompanied by 1 ally 28599 | -4/Factory | Discovered new exit (range 19) 28737 | -4/Factory | X0-1V1 sent you to a vault 28745 | -4/Factory | Found Prototype Device 28839 | -4/Factory | Identified Exp. Thermal Shield 29017 | -4/Factory | Discovered new exit (range 23) 29214 | -4/Factory | Identified exit to Research 29282 | -4/Factory | X0-1V1 activates XOMVISION 29302 | -4/Factory | Discovered new exit (range 19) 29316 | -4/Factory | Identified exit to Upper Caves 29768 | -4/Factory | Discovered exit to Research (range 17) 29845 | -4/Factory | X0-1V1 enhanced Transport squad support 29897 | -4/Factory | X0-1V1 announced a LAN party 29958 | -4/Factory | X0-1V1 sent you into danger 30082 | -4/Factory | Entered Armory 30108 | -4/Armory | X0-1V1 sent you into danger 30182 | -4/Armory | X0-1V1 sent hostile X-72 Disruptor (x2) 30252 | -4/Armory | X0-1V1 caused items to flee you 30370 | -4/Armory | Items stopped fleeing you 30395 | -4/Armory | Sensors blinded by X0-1V1 30582 | -4/Armory | First assault squad dispatched 30920 | -4/Armory | X0-1V1 put everyone to sleep 31213 | -4/Armory | Destroyed 11 combat bots 31226 | -4/Armory | Spotted B-86 Titan 31235 | -4/Armory | Destroyed B-86 Titan 31240 | -4/Armory | System corruption reached 30% 31249 | -4/Armory | Identified exit to Lab 31249 | -4/Armory | X0-1V1 revealed exit location to -4/Lab 31292 | -4/Armory | X0-1V1 sent you into danger 31502 | -4/Armory | Found Unknown Device 31502 | -4/Armory | Identified Adv. Force Booster 31564 | -4/Armory | X0-1V1 woke everyone up 31625 | -4/Armory | Crushed by falling debris 31642 | -4/Armory | X0-1V1 sent you to a vault 31656 | -4/Armory | Lost 3 parts (2p1u) 31882 | -4/Armory | X0-1V1 sent allied G-50 Soldier (x3) 32059 | -4/Armory | Lost 3 allies 32313 | -4/Armory | Lost 3 parts (1p2u) 32412 | -4/Armory | Discovered exit to Research (range 3) 32490 | -4/Armory | X0-1V1 revealed exit location to -3/Research 32524 | -4/Armory | Core integrity fell below 50% 32664 | -4/Armory | Destroyed 11 combat bots 32703 | -4/Armory | Entered Lab 32703 | -4/Lab | Discovered exit to Research (range 9) 32816 | -4/Lab | Unable to decrypt terminal 32859 | -4/Lab | Detected for breach 32860 | -4/Lab | Gained access to the hidden lab's interior 32865 | -4/Lab | Confronted by A5 32918 | -4/Lab | Destroyed A5 32997 | -4/Lab | Found Alien Artifact 32997 | -4/Lab | Identified Integrated Dissipator 32997 | -4/Lab | Installed Integrated Dissipator, increased core heat dissipation (+20) 33009 | -4/Lab | Found Alien Artifact 33009 | -4/Lab | Identified Core Regenerator 33009 | -4/Lab | Used Core Regenerator, restored core integrity (+300) 33025 | -4/Lab | Found Alien Artifact 33055 | -4/Lab | Found Prototype Energy Cannon 33058 | -4/Lab | Found Prototype Energy Cannon 33069 | -4/Lab | Identified Potential Cannon 33083 | -4/Lab | Identified Warp Cannon 33087 | -4/Lab | Found Prototype Protection 33087 | -4/Lab | Identified Exp. Powered Armor 33093 | -4/Lab | Found Prototype Hackware 33118 | -4/Lab | Identified Deep Network Scanner 33187 | -4/Lab | Found Prototype Hackware 33203 | -4/Lab | Entered Research 33203 | -3/Research | Evolved 2 slots: Utility x2 33209 | -3/Research | Identified Exp. Hacking Suite 33403 | -3/Research | Revision forces began assault on 0b10 33410 | -3/Research | Met up with Revision 17++ 33903 | -3/Research | Research terminal network offline 34016 | -3/Research | Intercept squad dispatched 34119 | -3/Research | Spotted Striker 34133 | -3/Research | Destroyed Striker 34305 | -3/Research | Identified exit to Garrison 34409 | -3/Research | Spotted Striker 34411 | -3/Research | Spotted Striker 34415 | -3/Research | Destroyed Striker 34446 | -3/Research | Discovered new exit (range 13) 34655 | -3/Research | Identified exit to Research 34661 | -3/Research | X0-1V1 sent you to a vault 34684 | -3/Research | Found Prototype Device 34692 | -3/Research | Identified Exp. Cloaking Device 34698 | -3/Research | Found Prototype Device 34705 | -3/Research | Identified Exp. Actuator Array 34718 | -3/Research | Found Prototype Device 34720 | -3/Research | Identified Thermal Barrier 34733 | -3/Research | Found Prototype Device 34740 | -3/Research | Identified Exp. Thermal Defense Suite 34791 | -3/Research | Identified exit to Testing 34791 | -3/Research | X0-1V1 revealed exit location to -3/Testing 34870 | -3/Research | Intercept squad dispatched 34888 | -3/Research | Spotted Tracker 34888 | -3/Research | Destroyed Tracker 34902 | -3/Research | Spotted Striker 34903 | -3/Research | Destroyed Striker 34937 | -3/Research | Destroyed 7 combat bots 34940 | -3/Research | Found Prototype Processor 34940 | -3/Research | Identified Exp. Targeting Computer 35079 | -3/Research | Build established: Tank 35192 | -3/Research | Discovered exit to Research (range 8) 35322 | -3/Research | Spotted Striker 35327 | -3/Research | Destroyed Striker 35328 | -3/Research | X0-1V1 activates XOMVISION 35328 | -3/Research | Spotted Striker 35332 | -3/Research | Destroyed Striker 35346 | -3/Research | Spotted Executioner 35350 | -3/Research | Spotted Striker 35351 | -3/Research | Destroyed Executioner 35356 | -3/Research | Destroyed Striker 35358 | -3/Research | X0-1V1 sent allied Executioner (x1) 35395 | -3/Research | Destroyed 8 combat bots 35423 | -3/Research | Spotted Striker 35431 | -3/Research | Destroyed Striker 35468 | -3/Research | Found Prototype Processor 35468 | -3/Research | Identified Exp. Core Analyzer 35480 | -3/Research | Destroyed 8 combat bots 35498 | -3/Research | Spotted Striker 35503 | -3/Research | Destroyed Striker 35505 | -3/Research | Spotted Striker 35505 | -3/Research | X0-1V1 sent you into danger 35509 | -3/Research | Destroyed Striker 35515 | -3/Research | Spotted Striker 35519 | -3/Research | Destroyed Striker 35540 | -3/Research | Destroyed 9 combat bots 35580 | -3/Research | Spotted Striker 35588 | -3/Research | Destroyed Striker 35602 | -3/Research | Spotted Striker 35605 | -3/Research | Destroyed Striker 35606 | -3/Research | Spotted Executioner 35608 | -3/Research | Destroyed Executioner 35635 | -3/Research | Destroyed 9 combat bots 35685 | -3/Research | X0-1V1 caused items to flee you 35710 | -3/Research | Spotted Striker 35716 | -3/Research | X0-1V1 sent allied Butcher (x2) 35717 | -3/Research | Destroyed Striker 35801 | -3/Research | Destroyed 13 combat bots 35830 | -3/Research | Discovered exit to Testing (range 5) 35886 | -3/Research | Items stopped fleeing you 36025 | -3/Research | Spotted Executioner 36026 | -3/Research | Destroyed Executioner 36027 | -3/Research | Spotted Striker 36031 | -3/Research | Destroyed Striker 36035 | -3/Research | Spotted Striker 36041 | -3/Research | Destroyed Striker 36078 | -3/Research | Destroyed 9 combat bots 36078 | -3/Research | Found Exp. Targeting Computer 36084 | -3/Research | Found Exp. Core Analyzer 36123 | -3/Research | Intercept squad dispatched 36248 | -3/Research | X0-1V1 sent you into danger 36256 | -3/Research | X0-1V1 vaporized surrounding terrain (radius 15) 36282 | -3/Research | Identified exit to Garrison 36291 | -3/Research | Destroyed Executioner 36298 | -3/Research | Entered Garrison 36425 | -3/Garrison | Build established: Scavenger-Gunner 36476 | -3/Garrison | Triggered checkpoint 36485 | -3/Garrison | Identified exit to Research 36485 | -3/Garrison | X0-1V1 revealed exit location to -3/Research 36491 | -3/Garrison | Spotted B-86 Titan 36494 | -3/Garrison | Destroyed B-86 Titan 36515 | -3/Garrison | Destroyed 10 combat bots 36573 | -3/Garrison | Triggered checkpoint 36649 | -3/Garrison | X0-1V1 activates XOMVISION 36653 | -3/Garrison | Destroyed 8 combat bots 36731 | -3/Garrison | Triggered checkpoint 36746 | -3/Garrison | Build established: Scavenger-Tank 36857 | -3/Garrison | Destroyed 7 combat bots 36877 | -3/Garrison | Discovered exit to Research (range 5) 36945 | -3/Garrison | Spotted B-86 Titan 36947 | -3/Garrison | Destroyed B-86 Titan 37031 | -3/Garrison | X0-1V1 revealed exit location to -3/Research 37034 | -3/Garrison | Triggered checkpoint 37042 | -3/Garrison | X0-1V1 sent allied Cetus Guard (x1) 37070 | -3/Garrison | Triggered checkpoint 37158 | -3/Garrison | Triggered checkpoint 37192 | -3/Garrison | Found embedded Infiltrators 37506 | -3/Garrison | Triggered checkpoint 37546 | -3/Garrison | Triggered checkpoint 37713 | -3/Garrison | Triggered checkpoint 37865 | -3/Garrison | Entered Research 37865 | -3/Research | Accompanied by 1 ally 38115 | -3/Research | First assault squad dispatched 38360 | -3/Research | Destroyed 7 combat bots 38401 | -3/Research | Intercept squad dispatched 38428 | -3/Research | Spotted Tracker 38429 | -3/Research | Destroyed Tracker 38430 | -3/Research | Spotted Tracker 38430 | -3/Research | Destroyed Tracker 38494 | -3/Research | Spotted Combat Programmer 38497 | -3/Research | Destroyed Combat Programmer 38600 | -3/Research | Found Exp. Signal Interpreter 38905 | -3/Research | Destroyed 7 combat bots 39002 | -3/Research | Discovered exit to Research (range 18) 39114 | -3/Research | X0-1V1 revealed exit location to -3/Testing 39187 | -3/Research | X0-1V1 enhanced Transport squad support 39333 | -3/Research | Fabricated Imp. Weapon Shielding (x2) 39345 | -3/Research | Build established: Hacker-Tank 39387 | -3/Research | High security lockdown imminent 39467 | -3/Research | High security lockdown engaged 39600 | -3/Research | Destroyed Executioner 39637 | -3/Research | Destroyed 7 combat bots 39699 | -3/Research | Spotted Investigator 39702 | -3/Research | Scanned by Researcher 39714 | -3/Research | Destroyed Investigator 39733 | -3/Research | Destroyed 12 combat bots 39748 | -3/Research | Destroyed Striker 39817 | -3/Research | X0-1V1 activates XOMVISION 39883 | -3/Research | Destroyed Striker 39952 | -3/Research | Destroyed 16 combat bots 40117 | -3/Research | Spotted Striker 40119 | -3/Research | Destroyed Striker 40187 | -3/Research | System corruption reached 10% 40213 | -3/Research | Destroyed 7 combat bots 40249 | -3/Research | X0-1V1 revealed exit location to -2/Research 40346 | -3/Research | Destroyed 11 combat bots 40356 | -3/Research | Spotted Investigator 40370 | -3/Research | X0-1V1 revealed exit location to -2/Research 40390 | -3/Research | Destroyed Striker 40394 | -3/Research | Destroyed Investigator 40411 | -3/Research | Destroyed 9 combat bots 40459 | -3/Research | Sterilization system engaged 40459 | -3/Research | Non-combat units ordered to evacuate 40463 | -3/Research | Spotted Striker 40463 | -3/Research | Destroyed Striker 40473 | -3/Research | Build established: Scavenger-Skirmisher 40488 | -3/Research | X0-1V1 announced a LAN party 40489 | -3/Research | Destroyed 9 combat bots 40559 | -3/Research | Combat units ordered to evacuate 40584 | -3/Research | Destroyed 23 combat bots 40759 | -3/Research | Ambient heat levels rising (+10) 40909 | -3/Research | Ambient heat levels rising (+10) 41059 | -3/Research | Ambient heat levels rising (+10) 41158 | -3/Research | X0-1V1 activates XOMVISION 41209 | -3/Research | Ambient heat levels rising (+10) 41359 | -3/Research | Ambient heat levels rising (+10) 41509 | -3/Research | Ambient heat levels rising (+10) 41659 | -3/Research | Ambient heat levels rising (+10) 41763 | -3/Research | X0-1V1 activates XOMVISION 41809 | -3/Research | Ambient heat levels rising (+10) 41959 | -3/Research | Ambient heat levels rising (+10) 42067 | -3/Research | Entered Testing 42208 | -3/Testing | X0-1V1 sent you into danger 42255 | -3/Testing | Found Potential Cannon 42317 | -3/Testing | First assault squad dispatched 42362 | -3/Testing | Sensors blinded by X0-1V1 42408 | -3/Testing | X0-1V1 sent allied H-81 Overseer (x1) 42521 | -3/Testing | X0-1V1 revealed exit location to -2/Research 42700 | -3/Testing | Destroyed 8 combat bots 42709 | -3/Testing | Build established: Scavenger-Tank 42749 | -3/Testing | Intercept squad dispatched 42755 | -3/Testing | Spotted Tracker 42756 | -3/Testing | Destroyed Tracker 42763 | -3/Testing | X0-1V1 activates XOMVISION 42769 | -3/Testing | Spotted Combat Programmer 42770 | -3/Testing | High security lockdown imminent 42776 | -3/Testing | Destroyed Combat Programmer 42817 | -3/Testing | Destroyed 8 combat bots 42850 | -3/Testing | High security lockdown engaged 42902 | -3/Testing | Destroyed Alpha 7 42905 | -3/Testing | Spotted Striker 42905 | -3/Testing | Spotted Striker 42911 | -3/Testing | Destroyed Striker 42919 | -3/Testing | Destroyed Striker 42940 | -3/Testing | Spotted Executioner 42944 | -3/Testing | Destroyed Executioner 42990 | -3/Testing | Lost 4 parts (1p1n2u) 42995 | -3/Testing | Core integrity restored by X0-1V1 (+270) 42998 | -3/Testing | Destroyed 21 combat bots 43025 | -3/Testing | Spotted Striker 43028 | -3/Testing | Destroyed Striker 43033 | -3/Testing | Spotted Investigator 43062 | -3/Testing | Destroyed Investigator 43081 | -3/Testing | Found Exp. Core Analyzer 43095 | -3/Testing | Destroyed 16 combat bots 43095 | -3/Testing | Found Prototype Processor 43095 | -3/Testing | Identified Exp. Target Analyzer 43134 | -3/Testing | Sensors blinded by X0-1V1 43165 | -3/Testing | Destroyed Investigator 43201 | -3/Testing | Found Centrium Heavy Armor Plating 43204 | -3/Testing | Weapon slot count temporarily expanded by X0-1V1 (+4) 43214 | -3/Testing | Found Fusion Bomb Launcher 43257 | -3/Testing | Destroyed 23 combat bots 43436 | -3/Testing | X0-1V1 whisked you away to safety 43538 | -3/Testing | Temporary slots became permanent: Weapon x2 43538 | -3/Testing | Entered Research 43685 | -2/Research | X0-1V1 redirected Transport squads to designated parking area 43773 | -2/Research | Weapon slot count reverted to normal (-2) 44038 | -2/Research | First assault squad dispatched 44048 | -2/Research | System corruption reached 10% 44067 | -2/Research | Fabricated O-32 Director? 44132 | -2/Research | Destroyed 12 combat bots 44147 | -2/Research | Build established: Scavenger-Executioner 44236 | -2/Research | Identified exit to Garrison 44236 | -2/Research | Entered Garrison 44320 | -2/Garrison | X0-1V1 activates XOMVISION 44324 | -2/Garrison | Triggered checkpoint 44377 | -2/Garrison | Expanded RIF knowledge: Autoassimilate 44397 | -2/Garrison | X0-1V1 sent hostile Fireman (x3) 44442 | -2/Garrison | Identified exit to Quarantine 44442 | -2/Garrison | X0-1V1 revealed exit location to -2/Quarantine 44540 | -2/Garrison | Destroyed B-90 Cyclops 44554 | -2/Garrison | Triggered checkpoint 44588 | -2/Garrison | Found Centrium Heavy Armor Plating 44744 | -2/Garrison | Triggered checkpoint 44794 | -2/Garrison | Triggered checkpoint 44862 | -2/Garrison | Triggered checkpoint 44975 | -2/Garrison | Found embedded Infiltrators 45026 | -2/Garrison | Discovered exit to Quarantine (range 13) 45328 | -2/Garrison | X0-1V1 revealed exit location to -2/Quarantine 45438 | -2/Garrison | X0-1V1 destroyed Phase Generator 45438 | -2/Garrison | Phase Generator disabled 45508 | -2/Garrison | Build established: Scavenger-Construct 45570 | -2/Garrison | X0-1V1 rewrote 78-MGZ(x) IFF filter 45660 | -2/Garrison | Entered Quarantine 45672 | -2/Quarantine | Centrium Heavy Armor Plating reconfigured into Greater Item Mimic 45697 | -2/Quarantine | X0-1V1 caused items to flee you 45964 | -2/Quarantine | Items stopped fleeing you 45986 | -2/Quarantine | Found Alien Impact Weapon 45987 | -2/Quarantine | Identified Core Stripper 46160 | -2/Quarantine | First assault squad dispatched 46369 | -2/Quarantine | Intercept squad dispatched 46383 | -2/Quarantine | Spotted Tracker 46384 | -2/Quarantine | Spotted Tracker 46389 | -2/Quarantine | Identified Transdimensional Reconstructor 46389 | -2/Quarantine | Warped through subspace 46675 | -2/Quarantine | Build established: Scavenger-Skirmisher 46811 | -2/Quarantine | Central database locked down 46859 | -2/Quarantine | X0-1V1 added 0b10 threat records associated with you (minor) 46897 | -2/Quarantine | Spotted Combat Programmer 46901 | -2/Quarantine | X0-1V1 turns hostiles against one another 46903 | -2/Quarantine | Combat Programmer assimilated hostile G-73 Enforcer 46939 | -2/Quarantine | Lost 3 allies 46960 | -2/Quarantine | Found Prototype Device 46963 | -2/Quarantine | Identified Exp. Shock Absorption System 47040 | -2/Quarantine | Intercept squad dispatched 47046 | -2/Quarantine | Spotted Tracker 47046 | -2/Quarantine | Spotted Tracker 47046 | -2/Quarantine | Spotted Tracker 47053 | -2/Quarantine | Destroyed Tracker 47058 | -2/Quarantine | Destroyed Tracker 47060 | -2/Quarantine | Destroyed Tracker 47062 | -2/Quarantine | Spotted Combat Programmer 47063 | -2/Quarantine | Spotted Combat Programmer 47064 | -2/Quarantine | Destroyed Tracker 47067 | -2/Quarantine | Spotted Combat Programmer 47078 | -2/Quarantine | X0-1V1 turns hostiles against one another 47080 | -2/Quarantine | Destroyed Combat Programmer 47098 | -2/Quarantine | Cryocooling Duct disabled 47100 | -2/Quarantine | Cryocooling Duct disabled 47113 | -2/Quarantine | Ambient heat levels rising (+20) 47113 | -2/Quarantine | Non-combat units ordered to evacuate 47115 | -2/Quarantine | Ambient heat levels rising (+20) 47115 | -2/Quarantine | Combat units ordered to evacuate 47146 | -2/Quarantine | Found Alien Artifact 47146 | -2/Quarantine | Identified Phase Armor 47215 | -2/Quarantine | Quarantine Guard activated 47271 | -2/Quarantine | Spotted Quarantine Guard 47451 | -2/Quarantine | Found Alien Energy Cannon 47528 | -2/Quarantine | X0-1V1 activates XOMVISION 47545 | -2/Quarantine | Spotted Quarantine Guard 47559 | -2/Quarantine | Destroyed Quarantine Guard 47650 | -2/Quarantine | Spotted Quarantine Guard 47716 | -2/Quarantine | Spotted Quarantine Guard 47813 | -2/Quarantine | Destroyed Quarantine Guard 47896 | -2/Quarantine | Found Alien Slashing Weapon 47896 | -2/Quarantine | Identified Sigix Broadsword 47969 | -2/Quarantine | Destroyed Quarantine Guard 48028 | -2/Quarantine | Identified Core Cannon 48102 | -2/Quarantine | Identified exit to Access 48102 | -2/Quarantine | X0-1V1 revealed exit location to -1/Access 48123 | -2/Quarantine | Spotted Quarantine Guard 48131 | -2/Quarantine | X0-1V1 put everyone to sleep 48137 | -2/Quarantine | Spotted Quarantine Guard 48197 | -2/Quarantine | Destroyed Quarantine Guard 48365 | -2/Quarantine | Spotted Quarantine Guard 48424 | -2/Quarantine | Destroyed Quarantine Guard 48507 | -2/Quarantine | Found Exp. Signal Interpreter 48545 | -2/Quarantine | Destroyed Quarantine Guard 48551 | -2/Quarantine | X0-1V1 sent you to a vault 48554 | -2/Quarantine | Found Alien Artifact 48561 | -2/Quarantine | Found Prototype Hackware 48562 | -2/Quarantine | Found Prototype Device 48566 | -2/Quarantine | Identified Exp. Transmission Jammer 48586 | -2/Quarantine | Identified System Mapper 48610 | -2/Quarantine | Found Prototype Device 48615 | -2/Quarantine | Identified Adv. Kinecellerator 48635 | -2/Quarantine | Found Prototype Slashing Weapon 48639 | -2/Quarantine | Identified Hvy. Scimitar of Distortion 48647 | -2/Quarantine | Found Prototype Reactor 48658 | -2/Quarantine | Identified Vortex Chain Reactor 48679 | -2/Quarantine | Build established: Hacker-Mutant 48746 | -2/Quarantine | Identified Emergency Decompositor 48746 | -2/Quarantine | Installed Emergency Decompositor, gained core-matter conversion pathway 48777 | -2/Quarantine | X0-1V1 activates XOMVISION 48807 | -2/Quarantine | X0-1V1 woke everyone up 49027 | -2/Quarantine | Found Alien Reactor 49076 | -2/Quarantine | Spotted Quarantine Guard 49101 | -2/Quarantine | Destroyed Quarantine Guard 49203 | -2/Quarantine | Found Terrabomb 49369 | -2/Quarantine | Spotted Quarantine Guard 49370 | -2/Quarantine | Identified exit to Protoforge 49370 | -2/Quarantine | X0-1V1 revealed exit location to -2/Protoforge 49409 | -2/Quarantine | Destroyed Quarantine Guard 49423 | -2/Quarantine | Found Terrabomb 49479 | -2/Quarantine | Spotted Quarantine Guard 49540 | -2/Quarantine | Destroyed Quarantine Guard 49609 | -2/Quarantine | Identified exit to Section 7 49609 | -2/Quarantine | X0-1V1 revealed exit location to -2/Section 7 49632 | -2/Quarantine | X0-1V1 vaporized surrounding terrain (radius 21) 49733 | -2/Quarantine | X0-1V1 activates XOMVISION 49822 | -2/Quarantine | Build established: Hacker-Construct 49968 | -2/Quarantine | Destroyed Quarantine Guard 50074 | -2/Quarantine | Used Terrabomb 50230 | -2/Quarantine | X0-1V1 activates XOMVISION 50348 | -2/Quarantine | Spotted Fortress 50426 | -2/Quarantine | X0-1V1 sent allied Striker (x2) 50447 | -2/Quarantine | Allies destroyed Fortress 50823 | -2/Quarantine | Spotted Quarantine Guard 50823 | -2/Quarantine | Spotted Quarantine Guard 50838 | -2/Quarantine | Destroyed Quarantine Guard 50841 | -2/Quarantine | Build established: Construct 50868 | -2/Quarantine | Destroyed Quarantine Guard 51019 | -2/Quarantine | Entered Protoforge 51115 | -2/Protoforge | Spotted Hotshot 51115 | -2/Protoforge | Spotted Hotshot 51123 | -2/Protoforge | Spotted Hotshot 51125 | -2/Protoforge | Spotted Hotshot 51128 | -2/Protoforge | Destroyed Hotshot 51130 | -2/Protoforge | Superfortress began startup sequence 51165 | -2/Protoforge | Destroyed Hotshot 51170 | -2/Protoforge | X0-1V1 sent allied H-88 Terminator (x4) 51171 | -2/Protoforge | Destroyed Hotshot 51173 | -2/Protoforge | Allies destroyed Hotshot 51236 | -2/Protoforge | X0-1V1 revealed exit location to -1/Access 51269 | -2/Protoforge | First assault squad dispatched 51311 | -2/Protoforge | Spotted Hotshot 51312 | -2/Protoforge | Spotted Hotshot 51314 | -2/Protoforge | Destroyed Hotshot 51319 | -2/Protoforge | Spotted Hotshot 51320 | -2/Protoforge | Spotted Hotshot 51322 | -2/Protoforge | Allies destroyed Hotshot 51329 | -2/Protoforge | Allies destroyed Hotshot 51332 | -2/Protoforge | Allies destroyed Hotshot 51357 | -2/Protoforge | Spotted Overlord 51357 | -2/Protoforge | X0-1V1 sent you into danger 51393 | -2/Protoforge | Destroyed Overlord 51512 | -2/Protoforge | Core integrity fell below 50% 51528 | -2/Protoforge | Destroyed 8 combat bots 51582 | -2/Protoforge | Found Prototype Energy Gun 51582 | -2/Protoforge | Identified Enh. Gamma Rifle 51664 | -2/Protoforge | X0-1V1 activates XOMVISION 51667 | -2/Protoforge | X0-1V1 turns hostiles against one another 51840 | -2/Protoforge | X0-1V1 sent you to a vault 51849 | -2/Protoforge | Spotted B-90 Cyclops 51864 | -2/Protoforge | Destroyed B-90 Cyclops 52049 | -2/Protoforge | Used Terrabomb 52049 | -2/Protoforge | Additional patrols dispatched to research labs 52068 | -2/Protoforge | Spotted Immortal 52068 | -2/Protoforge | Spotted Immortal 52074 | -2/Protoforge | Destroyed Immortal 52079 | -2/Protoforge | Destroyed Immortal 52090 | -2/Protoforge | X0-1V1 put everyone to sleep 52102 | -2/Protoforge | Spotted Decapitator 52102 | -2/Protoforge | Spotted Decapitator 52102 | -2/Protoforge | Spotted Decapitator 52102 | -2/Protoforge | Spotted Decapitator 52111 | -2/Protoforge | Core integrity restored by X0-1V1 (+390) 52118 | -2/Protoforge | Found Prototype Device 52118 | -2/Protoforge | Identified Crosscalibrator 52133 | -2/Protoforge | X0-1V1 activates XOMVISION 52143 | -2/Protoforge | Build established: Commander-Construct 52155 | -2/Protoforge | Forge Plexus network access discovered 52167 | -2/Protoforge | Intercept squad dispatched 52194 | -2/Protoforge | Found Cep. Antigrav Storage Unit 52200 | -2/Protoforge | Found Cep. NT7 Matterbank 52201 | -2/Protoforge | Found Cep. Chromion Battery 52209 | -2/Protoforge | Found Cep. Matter Streamer 52242 | -2/Protoforge | Spotted Decapitator 52247 | -2/Protoforge | Destroyed Decapitator 52252 | -2/Protoforge | Spotted Decapitator 52254 | -2/Protoforge | Spotted Decapitator 52254 | -2/Protoforge | Spotted Decapitator 52255 | -2/Protoforge | Spotted Decapitator 52261 | -2/Protoforge | Destroyed Decapitator 52262 | -2/Protoforge | Destroyed Decapitator 52265 | -2/Protoforge | Destroyed Decapitator 52278 | -2/Protoforge | Destroyed Decapitator 52306 | -2/Protoforge | Core integrity restored by X0-1V1 (+390) 52349 | -2/Protoforge | Destroyed Decapitator 52351 | -2/Protoforge | Destroyed Decapitator 52376 | -2/Protoforge | Destroyed Decapitator 52457 | -2/Protoforge | Found Cep. Zero-point Core 52459 | -2/Protoforge | Found Cep. Zero-point Core 52543 | -2/Protoforge | Spotted Hotshot 52545 | -2/Protoforge | Spotted Hotshot 52546 | -2/Protoforge | Spotted Hotshot 52558 | -2/Protoforge | Destroyed Hotshot 52561 | -2/Protoforge | Destroyed Hotshot 52562 | -2/Protoforge | Spotted Hotshot 52564 | -2/Protoforge | Destroyed Hotshot 52568 | -2/Protoforge | Destroyed Hotshot 52613 | -2/Protoforge | Spotted Decapitator 52617 | -2/Protoforge | X0-1V1 announced a LAN party 52617 | -2/Protoforge | Spotted Decapitator 52617 | -2/Protoforge | Spotted Decapitator 52617 | -2/Protoforge | Spotted V111-d 52622 | -2/Protoforge | Destroyed Decapitator 52631 | -2/Protoforge | Destroyed Decapitator 52633 | -2/Protoforge | Destroyed Decapitator 52637 | -2/Protoforge | Spotted V438-v 52646 | -2/Protoforge | Destroyed V438-v 52657 | -2/Protoforge | Build established: Scavenger-Construct 52664 | -2/Protoforge | Destroyed V111-d 52684 | -2/Protoforge | Found Faulty Cep. Tiamat Rocket Array 52690 | -2/Protoforge | Found Cep. Tiamat Rocket Array 52706 | -2/Protoforge | X0-1V1 vaporized surrounding terrain (radius 19) 52744 | -2/Protoforge | X0-1V1 woke everyone up 52841 | -2/Protoforge | Found Exp. Force Field 52854 | -2/Protoforge | Found Cep. Beam Splitter 52901 | -2/Protoforge | Found Cep. Reaction Jets 52906 | -2/Protoforge | Found Cep. Projectile Intercept Suite 53009 | -2/Protoforge | Destroyed 14 combat bots 53049 | -2/Protoforge | Spotted Decapitator 53049 | -2/Protoforge | Spotted Decapitator 53049 | -2/Protoforge | Spotted Decapitator 53049 | -2/Protoforge | Spotted Decapitator 53052 | -2/Protoforge | Destroyed Decapitator 53065 | -2/Protoforge | Destroyed Decapitator 53067 | -2/Protoforge | Destroyed Decapitator 53069 | -2/Protoforge | Destroyed Decapitator 53090 | -2/Protoforge | Destroyed 8 combat bots 53136 | -2/Protoforge | Found Cep. Weapon Articulator 53139 | -2/Protoforge | Found Cep. Weapon Articulator 53143 | -2/Protoforge | Found Faulty Exp. Kinecellerator 53146 | -2/Protoforge | Found Cep. Networked Targeting System 53175 | -2/Protoforge | Spotted V488-a 53177 | -2/Protoforge | X0-1V1 sent allied G-67 Veteran (x3) 53226 | -2/Protoforge | Found Exp. Kinecellerator 53231 | -2/Protoforge | Found Faulty Cep. Networked Targeting System 53264 | -2/Protoforge | Found Cep. Networked Targeting System 53278 | -2/Protoforge | Destroyed V488-a 53287 | -2/Protoforge | X0-1V1 activates XOMVISION 53310 | -2/Protoforge | Intercept squad dispatched 53334 | -2/Protoforge | Spotted Tracker 53335 | -2/Protoforge | Spotted Tracker 53335 | -2/Protoforge | Spotted Tracker 53340 | -2/Protoforge | Destroyed Tracker 53344 | -2/Protoforge | Destroyed Tracker 53379 | -2/Protoforge | Spotted V740-n 53383 | -2/Protoforge | Destroyed 7 combat bots 53387 | -2/Protoforge | X0-1V1 sent allied Cetus Guard (x2) 53390 | -2/Protoforge | Destroyed V740-n 53398 | -2/Protoforge | Spotted Combat Programmer 53399 | -2/Protoforge | Spotted Combat Programmer 53400 | -2/Protoforge | Spotted Combat Programmer 53403 | -2/Protoforge | Destroyed Combat Programmer 53409 | -2/Protoforge | Destroyed Combat Programmer 53423 | -2/Protoforge | Spotted Immortal 53424 | -2/Protoforge | Spotted Immortal 53430 | -2/Protoforge | Destroyed Immortal 53432 | -2/Protoforge | Destroyed Immortal 53546 | -2/Protoforge | Found Cep. Plasma Driver 53549 | -2/Protoforge | Found Cep. XC Strikerail 53574 | -2/Protoforge | Found Faulty Cep. Plasma Driver 53666 | -2/Protoforge | Found Faulty Cep. Plasma Driver 53672 | -2/Protoforge | Found Cep. XC Strikerail 53754 | -2/Protoforge | Destroyed 9 combat bots 53892 | -2/Protoforge | Spotted AP7-3 53892 | -2/Protoforge | Spotted AP7-3 53900 | -2/Protoforge | Destroyed AP7-3 53902 | -2/Protoforge | Destroyed AP7-3 53933 | -2/Protoforge | Found Cep. Core Analysis Suite 53937 | -2/Protoforge | Found Cep. Blasthammer 53952 | -2/Protoforge | Found Cep. Thermoelectric Network 53958 | -2/Protoforge | Found Cep. Thermoelectric Network 53962 | -2/Protoforge | Found Cep. Impact Drone Bay 53972 | -2/Protoforge | Found Prototype Device 53972 | -2/Protoforge | Identified Exp. ECM Suite 53984 | -2/Protoforge | Found Faulty Cep. Thermoelectric Network 53990 | -2/Protoforge | Found Faulty Cep. Impact Drone Bay 54076 | -2/Protoforge | Destroyed 7 combat bots 54081 | -2/Protoforge | Found Faulty Cep. Cloak Mesh 54085 | -2/Protoforge | Found Faulty Cep. Cloak Mesh 54220 | -2/Protoforge | Found Transdimensional Reconstructor 54240 | -2/Protoforge | Build established: Construct 54368 | -2/Protoforge | Destroyed 11 combat bots 54499 | -2/Protoforge | Destroyed 10 combat bots 54572 | -2/Protoforge | Intercept squad dispatched 54593 | -2/Protoforge | Spotted Tracker 54593 | -2/Protoforge | Spotted Tracker 54594 | -2/Protoforge | Spotted Tracker 54596 | -2/Protoforge | Destroyed Tracker 54596 | -2/Protoforge | Destroyed Tracker 54622 | -2/Protoforge | Found Prototype Device 54622 | -2/Protoforge | Identified Exp. Phase Shifter 54639 | -2/Protoforge | Destroyed Combat Programmer 54639 | -2/Protoforge | Destroyed Combat Programmer 54640 | -2/Protoforge | Spotted Combat Programmer 54640 | -2/Protoforge | Destroyed Combat Programmer 54681 | -2/Protoforge | Destroyed Tracker 54706 | -2/Protoforge | Destroyed 11 combat bots 54964 | -2/Protoforge | Destroyed 12 combat bots 55072 | -2/Protoforge | X0-1V1 added 0b10 threat records associated with you (minor) 55101 | -2/Protoforge | X0-1V1 vaporized surrounding terrain (radius 16) 55238 | -2/Protoforge | Destroyed 12 combat bots 55307 | -2/Protoforge | High security lockdown imminent 55307 | -2/Protoforge | Destroyed Superfortress 55309 | -2/Protoforge | Destroyed Executioner 55318 | -2/Protoforge | X0-1V1 activates XOMVISION 55366 | -2/Protoforge | Intercept squad dispatched 55384 | -2/Protoforge | Spotted Tracker 55385 | -2/Protoforge | Destroyed Tracker 55385 | -2/Protoforge | Spotted Tracker 55386 | -2/Protoforge | Destroyed Tracker 55386 | -2/Protoforge | Spotted Tracker 55387 | -2/Protoforge | High security lockdown engaged 55387 | -2/Protoforge | Spotted Tracker 55388 | -2/Protoforge | Destroyed Tracker 55389 | -2/Protoforge | Destroyed Tracker 55429 | -2/Protoforge | Spotted Combat Programmer 55429 | -2/Protoforge | Destroyed Combat Programmer 55430 | -2/Protoforge | Spotted Combat Programmer 55432 | -2/Protoforge | Spotted Combat Programmer 55432 | -2/Protoforge | Destroyed Combat Programmer 55435 | -2/Protoforge | Spotted Combat Programmer 55435 | -2/Protoforge | Destroyed Combat Programmer 55435 | -2/Protoforge | Destroyed Combat Programmer 55460 | -2/Protoforge | Destroyed 7 combat bots 55557 | -2/Protoforge | Weapon slot count temporarily expanded by X0-1V1 (+1) 55580 | -2/Protoforge | Destroyed 12 combat bots 55646 | -2/Protoforge | Destroyed Executioner 55647 | -2/Protoforge | Destroyed Striker 55650 | -2/Protoforge | Destroyed Executioner 55655 | -2/Protoforge | Destroyed Investigator 55676 | -2/Protoforge | Destroyed 15 combat bots 55689 | -2/Protoforge | X0-1V1 activates XOMVISION 55737 | -2/Protoforge | X0-1V1 downgraded hostiles (x2) 55776 | -2/Protoforge | Destroyed 11 combat bots 55794 | -2/Protoforge | Spotted Executioner 55799 | -2/Protoforge | Destroyed Executioner 55810 | -2/Protoforge | Destroyed Investigator 55833 | -2/Protoforge | Destroyed 13 combat bots 55850 | -2/Protoforge | Weapon slot count reverted to normal (-1) 55890 | -2/Protoforge | Destroyed 9 combat bots 56004 | -2/Protoforge | Spotted Executioner 56004 | -2/Protoforge | Spotted Executioner 56004 | -2/Protoforge | Spotted Striker 56005 | -2/Protoforge | Destroyed Executioner 56007 | -2/Protoforge | Destroyed Executioner 56008 | -2/Protoforge | Destroyed Striker 56033 | -2/Protoforge | Spotted Executioner 56033 | -2/Protoforge | Destroyed Executioner 56037 | -2/Protoforge | Spotted Investigator 56045 | -2/Protoforge | Destroyed Investigator 56046 | -2/Protoforge | Spotted Striker 56053 | -2/Protoforge | Destroyed Striker 56074 | -2/Protoforge | Destroyed 32 combat bots 56159 | -2/Protoforge | X0-1V1 activates XOMVISION 56281 | -2/Protoforge | Spotted Striker 56282 | -2/Protoforge | Spotted Striker 56283 | -2/Protoforge | Destroyed Striker 56283 | -2/Protoforge | Spotted Striker 56289 | -2/Protoforge | Destroyed Striker 56293 | -2/Protoforge | Spotted Striker 56293 | -2/Protoforge | Spotted Striker 56295 | -2/Protoforge | Destroyed Striker 56298 | -2/Protoforge | Destroyed Striker 56301 | -2/Protoforge | Spotted Striker 56302 | -2/Protoforge | Spotted Striker 56303 | -2/Protoforge | Destroyed Striker 56305 | -2/Protoforge | Destroyed Striker 56312 | -2/Protoforge | Destroyed Striker 56321 | -2/Protoforge | Spotted Striker 56323 | -2/Protoforge | Destroyed Striker 56342 | -2/Protoforge | Lost 3 parts (1p1n1u) 56358 | -2/Protoforge | Destroyed 37 combat bots 56368 | -2/Protoforge | Build established: Gunner 56381 | -2/Protoforge | X0-1V1 sent you into danger 56402 | -2/Protoforge | X0-1V1 sent hostile B-74 Champion (x1) 56424 | -2/Protoforge | Destroyed 7 combat bots 56499 | -2/Protoforge | Spotted EXE-6 56500 | -2/Protoforge | Spotted EXE-6 56501 | -2/Protoforge | Destroyed EXE-6 56504 | -2/Protoforge | Destroyed EXE-6 56537 | -2/Protoforge | Spotted Decapitator 56537 | -2/Protoforge | Spotted Decapitator 56538 | -2/Protoforge | Destroyed Decapitator 56541 | -2/Protoforge | Destroyed Decapitator 56558 | -2/Protoforge | Spotted EXE-6 56562 | -2/Protoforge | Destroyed EXE-6 56562 | -2/Protoforge | Spotted EXE-6 56563 | -2/Protoforge | Destroyed EXE-6 56579 | -2/Protoforge | Found Prototype Processor 56579 | -2/Protoforge | Identified Exp. Armor Integrity Analyzer 56597 | -2/Protoforge | Spotted AP7-3 56597 | -2/Protoforge | Destroyed AP7-3 56601 | -2/Protoforge | Intercept squad dispatched 56605 | -2/Protoforge | Spotted AP7-3 56612 | -2/Protoforge | Destroyed AP7-3 56614 | -2/Protoforge | Spotted Tracker 56614 | -2/Protoforge | Spotted Tracker 56614 | -2/Protoforge | Spotted Tracker 56614 | -2/Protoforge | Spotted Tracker 56615 | -2/Protoforge | Destroyed Tracker 56615 | -2/Protoforge | Destroyed Tracker 56616 | -2/Protoforge | Destroyed Tracker 56616 | -2/Protoforge | Destroyed Tracker 56637 | -2/Protoforge | Spotted Combat Programmer 56637 | -2/Protoforge | Destroyed Combat Programmer 56638 | -2/Protoforge | Spotted Combat Programmer 56643 | -2/Protoforge | Core integrity restored by X0-1V1 (+234) 56646 | -2/Protoforge | Spotted Combat Programmer 56648 | -2/Protoforge | Spotted Combat Programmer 56649 | -2/Protoforge | Destroyed Combat Programmer 56656 | -2/Protoforge | Destroyed Combat Programmer 56658 | -2/Protoforge | Destroyed Combat Programmer 56679 | -2/Protoforge | Destroyed 11 combat bots 56731 | -2/Protoforge | Spotted Decapitator 56731 | -2/Protoforge | Spotted Decapitator 56731 | -2/Protoforge | Spotted Decapitator 56732 | -2/Protoforge | Spotted Decapitator 56733 | -2/Protoforge | Destroyed Decapitator 56733 | -2/Protoforge | Destroyed Decapitator 56736 | -2/Protoforge | Destroyed Decapitator 56736 | -2/Protoforge | Destroyed Decapitator 56749 | -2/Protoforge | Spotted Executioner 56757 | -2/Protoforge | Spotted Executioner 56757 | -2/Protoforge | Spotted Striker 56757 | -2/Protoforge | Spotted Executioner 56757 | -2/Protoforge | Spotted Striker 56757 | -2/Protoforge | Spotted Striker 56757 | -2/Protoforge | Warped through subspace 56774 | -2/Protoforge | Destroyed 7 combat bots 56821 | -2/Protoforge | Destroyed Striker 56842 | -2/Protoforge | Destroyed 11 combat bots 56872 | -2/Protoforge | Spotted Investigator 56877 | -2/Protoforge | Destroyed Investigator 56911 | -2/Protoforge | Destroyed 18 combat bots 56914 | -2/Protoforge | X0-1V1 whisked you away to safety 56960 | -2/Protoforge | Spotted Striker 56960 | -2/Protoforge | Spotted Executioner 56960 | -2/Protoforge | Spotted Striker 56961 | -2/Protoforge | X0-1V1 downgraded hostiles (x7) 56981 | -2/Protoforge | X0-1V1 turns hostiles against one another 56982 | -2/Protoforge | Spotted Executioner 56983 | -2/Protoforge | Destroyed Executioner 56996 | -2/Protoforge | Spotted Executioner 57011 | -2/Protoforge | Destroyed Executioner 57034 | -2/Protoforge | Destroyed 10 combat bots 57042 | -2/Protoforge | Entered Access 57042 | -1/Access | Evolved 2 slots: Utility x2 57043 | -1/Access | System corruption reached 10% 57063 | -1/Access | X0-1V1 vaporized surrounding terrain (radius 22) 57072 | -1/Access | Lost 8 parts (5n2u1w) 57292 | -1/Access | First assault squad dispatched 57386 | -1/Access | Build established: Executioner 57802 | -1/Access | Build established: Gunner 57842 | -1/Access | Spotted Striker 57845 | -1/Access | Spotted Striker 57853 | -1/Access | Destroyed 11 combat bots 57887 | -1/Access | Destroyed Striker 57904 | -1/Access | Destroyed Striker 58075 | -1/Access | Spotted B-99 Colossus 58075 | -1/Access | Destroyed B-99 Colossus 58077 | -1/Access | Garrison activated, responded to threat 58081 | -1/Access | High security lockdown imminent 58096 | -1/Access | X0-1V1 whisked you away to safety 58104 | -1/Access | Destroyed 8 combat bots 58106 | -1/Access | Energy Cycler disabled 58115 | -1/Access | Spotted Executioner 58123 | -1/Access | Destroyed Executioner 58161 | -1/Access | High security lockdown engaged 58167 | -1/Access | Spotted Executioner 58200 | -1/Access | Destroyed Executioner 58229 | -1/Access | Spotted Executioner 58229 | -1/Access | Spotted Executioner 58231 | -1/Access | Spotted Executioner 58238 | -1/Access | Spotted Executioner 58239 | -1/Access | Destroyed Executioner 58242 | -1/Access | Destroyed Executioner 58248 | -1/Access | Destroyed Executioner 58258 | -1/Access | Destroyed Executioner 58263 | -1/Access | Found Exp. Core Analyzer 58290 | -1/Access | Intercept squad dispatched 58302 | -1/Access | Spotted Tracker 58303 | -1/Access | Spotted Tracker 58305 | -1/Access | Destroyed Tracker 58317 | -1/Access | Spotted Combat Programmer 58327 | -1/Access | Spotted Striker 58328 | -1/Access | Destroyed Striker 58362 | -1/Access | Destroyed 13 combat bots 58362 | -1/Access | Spotted Combat Programmer 58363 | -1/Access | Destroyed Combat Programmer 58363 | -1/Access | Destroyed Tracker 58402 | -1/Access | Core integrity fell below 50% 58435 | -1/Access | Spotted Investigator 58440 | -1/Access | Build established: Scavenger-Gunner 58441 | -1/Access | Destroyed Investigator 58448 | -1/Access | X0-1V1 downgraded hostiles (x1) 58452 | -1/Access | Destroyed Combat Programmer 58473 | -1/Access | Destroyed 24 combat bots 58554 | -1/Access | Destroyed 17 combat bots 58569 | -1/Access | Core integrity fell below 20% 58779 | -1/Access | Intercept squad dispatched 58782 | -1/Access | Build established: Scavenger-Mutant 58810 | -1/Access | Spotted Tracker 58812 | -1/Access | Spotted Tracker 58812 | -1/Access | Destroyed Executioner 58814 | -1/Access | Spotted Tracker 58816 | -1/Access | X0-1V1 turns hostiles against one another 58825 | -1/Access | Destroyed Executioner 58837 | -1/Access | Destroyed Tracker 58842 | -1/Access | Destroyed Tracker 58845 | -1/Access | Spotted Combat Programmer 58850 | -1/Access | Destroyed Tracker 58865 | -1/Access | Spotted Executioner 58865 | -1/Access | Spotted Striker 58866 | -1/Access | Destroyed by Executioner with Helical Railgun Last Messages --------------- 58864_ C-45 Heavy ARC bursts open for emergency deployment. 58864_ G-73 Enforcer unfolds itself. 58864_ B-74 Champion unfolds itself. 58864_ G-73 Enforcer destroyed. 58864_ I-47 Archangel unfolds itself. 58864_ C-45 Heavy ARC destroyed. 58864_ C-45 Heavy ARC bursts open, deploying its payload. 58864_ P-80 Master unfolds itself. 58864_ Striker unfolds itself. 58864_ Executioner unfolds itself. 58864_ E-15 Imp unfolds itself. 58865_ Activated siege mode. 58866_ Plasma Slug penetrates L-61 Swordsman. 58866_ L-61 Swordsman suffers critical hit (Destroy). 58866_ Destroyed Lgt. Antimatter Reactor. 58866_ L-61 Swordsman destroyed. 58866_ P-80 Master suffers critical hit (Destroy). 58866_ Destroyed Imp. Antigrav System. 58866_ Penetrated by Slug. 58866_ X0-1V1 snickers! Map ----- +----------------------------------------------------+ | | | | | | | | | | | | | | | | | | | | | | | ??????????##############?????????????????????????? | | ?????????# * ! #?????????????????????????? | | ?????????# #?????????????????????????? | | ?????????# * #?????????????????????????? | | ?????????# = #?????????????????????????? | | ?????????# #?????????????????????????? | | ?????????# ! #?????????????????????????? | | ?????????# ^ #?????????????????????????? | | ?????????# #?????????????????????????? | | ?????????# #????###########??????????? | | ?????????# i!???????# #??????????? | | ?????????# !=* =K=?###### #??????????? | | ############[%;;;;g##=!#!=! #! #??????????? | | !=[=b*%!/% =!E%eg[%!! # #??????????? | | C%[%b%%=%%![%%![p*==@! ; #??????????? | | ######+####gi==!;[######[=!%# !#??????????? | | ???? ?#????? ????##=[## #??????????? | | ?? #????? ?????#!*## #??????????? | | #???? ????#![############??????????? | | #???? ????#*=#??#################??? | | #??? ! ???#%!#? #??? | | #??########???#*%#? ???? | | ###########??#! #######%!# """"??????? | | ?????????????# " !%!= """""??????? | | ?????????????# =!*+ """""??????? | | ?????????????# #######*|# """"??????? | | ?????????????##?????????# ; #??? | | ????????????????????????# #? #??? | | ????????????????????????# #?##################??? | | ????????????????????????# #?????????????????????? | | ????????????????????????# #?????????????????????? | | ????????????????????????# #?????????????????????? | | ????????????????????????# #?????????????????????? | | ????????????????????????# #?????????????????????? | | ????????????????????????# #?????????????????????? | | ????????????????????????# *#?????????????????????? | | ????????????????????????#= #?????????????????????? | | ????????????????????????# #?????????????????????? | | ????????????????????????# #?????????????????????? | +----------------------------------------------------+ Best States ------------- Heat Dissipation 314 Coolant Potential 120 Energy Generation 93 Energy Capacity 3090 Matter Stores 1000 Matter Capacity 1050 Sight Range 28 Robot Scan Range 19 Terrain Scan Range 24 Terrain Scan Density 10 Jamming Range 22 Cloak Strength 9 Power Amplification 40 Base Temperature (-) 200 Corruption Containment 20 Armor Coverage 1200 Resistance: KI 33 Resistance: TH 75 Resistance: EM 25 Utility Shielding 66 Weapon Shielding 66 Weapon Cycling 30 Melee Speed Boost 30 Phase Shifting 20 Evasion (%) 94 Targeting Accuracy 30 Core Analysis 15 Armor Integrity Analysis 50 Recoil Reduction 5 Matter Filtering 30 Energy Filtering 50 Particle Charging 40 Kinecelleration 66 Offensive Hacking 50 Defensive Hacking 10 Relay Coupler Types 1 Relay Coupler Value 2 Item Schematics ----------------- Imp. Recalibrator | -5/Factory | Hacked Imp. Weapon Shielding | -3/Research | Hacked Com. Mass Driver | -2/Quarantine | Archive Exp. Targeting Computer | -2/Quarantine | Archive Imp. Q-thruster | -2/Quarantine | Archive Imp. Lightning Gun | -2/Quarantine | Archive Enh. Armored Medium Treads | -2/Quarantine | Archive Imp. Thermal Defense Suite | -2/Protoforge | Archive Hds. Centrium Leg | -2/Protoforge | Archive Com. Linear Accelerator | -2/Protoforge | Archive Hvy. Tesla Rifle | -2/Protoforge | Archive Exp. Power Amplifier | -2/Protoforge | Archive Graviton Cannon | -2/Protoforge | Archive Exp. Transmission Jammer | -2/Protoforge | Archive Adv. Plasma Rifle | -2/Protoforge | Archive Exp. Target Analyzer | -2/Protoforge | Archive Vortex Chain Reactor | -2/Protoforge | Archive Diametric Drive | -2/Protoforge | Archive Exp. EM Shield | -2/Protoforge | Archive Kinetic Spear | -2/Protoforge | Archive Adv. Gravity Neutralizer | -2/Protoforge | Archive Exp. Hacking Suite | -2/Protoforge | Archive Robot Schematics ------------------ R-10 Processor | -2/Quarantine | Archive M-36 Artificer | -2/Protoforge | Archive A-27 Freighter | -2/Protoforge | Archive B-74 Champion | -2/Protoforge | Archive R-06 Scavenger | -2/Protoforge | Archive T-07 Excavator | -2/Protoforge | Archive Fabricated ------------ K-01 Serf | x4 | -5/Factory | Preloaded Imp. Weapon Shielding | x2 | -3/Research O-32 Director | x1 | -2/Research | Preloaded Repaired ---------- Nothing Studied --------- Titanium Leg | -8/Materials | Hacked VSS Leg | -8/Materials | Hacked Spread Laser | -8/Materials | Hacked Lgt. Treads | -8/Materials | Hacked Arm. Treads | -8/Materials | Hacked Flak Cannon | -8/Materials | Hacked Ion Cannon | -8/Materials | Hacked Hvy. Particle Cannon | -8/Materials | Hacked Lgt. Nuclear Core | -8/Materials | Hacked Imp. Ion Engine | -8/Materials | Hacked Imp. Aluminum Leg | -8/Materials | Hacked Rocket Launcher | -8/Materials | Hacked Particle Cannon | -8/Materials | Hacked Angular Momentum Engine | -6/Factory | Hacked Lrn. Missile Launcher | -6/Factory | Hacked Remote Datajack | -6/Factory | Hacked Hvy. Missile Launcher | -6/Factory | Hacked Hvy. Flak Cannon | -6/Factory | Hacked Lrn. Proton Cannon | -5/Factory | Hacked HERF Cannon | -4/Factory | Hacked KE Penetrator | -4/Factory | Hacked Mass Driver | -4/Factory | Hacked Hardcell Cannon | -4/Factory | Hacked Med. Treads | -3/Research | Hacked Enh. Hardcell Cannon | -2/Quarantine | Hacked Quantum Reactor | -2/Protoforge | Hacked Alien Tech Used ----------------- Core Expander Integrated Dissipator Core Regenerator Core Stripper Transdimensional Reconstructor Phase Armor Sigix Broadsword Core Cannon Emergency Decompositor Terrabomb Achievements -------------- Incoming! Challenges ------------ None Game ------ Seed CoolantMobileMace Manual? 0 Play Time 10:23:58 Cumulative 631.8 hours Start 2026.09.04 @ 22:02:54 End 2026.09.05 @ 14:50:13 Sessions 3 Manual Loads 0 Difficulty Rogue Special Mode None Game No. 342 Rogue 342 Adventurer 0 Explorer 0 Win Type - Total 20 Types 10/1/3/1/1/0/1/1/0/2 Lore% 86 Gallery% 85 Achievement% 77 Wizard Run 0 Options --------- Layout 0 ASCII 0 Keyboard 0 Movement Mouse Keybinds 0 Fullscreen 1 Font 18/SmallcapsGlow Map View 76x50 Zoom Use 0% Tactical HUD 1 Map Filters NONE Filters NONE Steam 1 RUN: a5e3de7b-6e7b-49e0-96ab-28e0605b2798